Cogmind - Beta 15 @@@ ROGUE MODE // 2025.06.20 @ 17:20:28 Player: EX-OCT Result: Destroyed by B-99 Colossus with Multirail Performance ------------- Evolutions (9) 4500 Regions Visited (27) 5400 Robots Destroyed (247) 1235 Value Destroyed (16575) 16575 Prototype IDs (17) 340 Alien Tech Used (0) 0 Bonus (13979) 13979 TOTAL SCORE: 42029 Bonus ------- High Alert Combat Kills 663 Follower Combat Kills 5416 Entered Garrisons 1800 Used RIF Installer 5500 Network Hubs Disabled 600 Cogmind --------- Core Integrity 0/1600 Matter 97/300 Energy 96/100 System Corruption 17% Temperature Cool (0) Movement Core (50) Location -1/Access Parts ------- > --- POWER (2) -------- (None) > --- PROPULSION (8) --- Improved Heavy Siege Treads Improved Heavy Siege Treads > --- UTILITY (13) ----- Advanced Signal Interpreter Advanced Signal Interpreter Graphene Brace Relay Coupler [NC] (28) Relay Coupler [Hunter] (20) > --- WEAPON (2) ------- (None) > --- INVENTORY (5) ---- Gravity Neutralizer Relay Coupler [NC] (25) Relay Coupler [Behemoth] (10) Enhanced Nova Cannon Peak State ------------ > --- POWER ------------ Particle Reactor Light Quantum Reactor > --- PROPULSION ------- Biometal Heavy Treads Biometal Heavy Treads Biometal Heavy Treads > --- UTILITY ---------- Cargo Storage Unit Advanced Target Analyzer Advanced Transmission Jammer Thermal Defense Suite Hacking Suite Relay Coupler [NC] Relay Coupler [Swarmer] Relay Coupler [Grunt] Relay Coupler [Sentry] Relay Coupler [Hunter] > --- WEAPON ----------- Enhanced Hardcell Cannon Enhanced Hardcell Cannon > --- INVENTORY -------- Light Antimatter Reactor Light Quantum Reactor Improved Heavy Treads Improved Heavy Treads Biometal Medium Treads Biometal Medium Treads Advanced Heavy Siege Treads Relay Coupler [NC] Relay Coupler [NC] Relay Coupler [NC] Relay Coupler [NC] Relay Coupler [NC] Relay Coupler [NC] Relay Coupler [Swarmer] Relay Coupler [Swarmer] Relay Coupler [Swarmer] Decoy Drone Bay Smartbomb Launcher Advanced Datajack Improved Remote Datajack Improved Remote Datajack Improved Remote Datajack Improved Plasma Cutter Axe Carbide Saw [Rating: 145] Favorites ----------- Power Light Quantum Reactor Engine Improved Ion Engine Power Core Light Nuclear Core Reactor Light Quantum Reactor Propulsion Light Treads Treads Light Treads Leg Thunder Leg Wheel Wheel Hover Unit Gravmag System Flight Unit Impulse Thruster Array Utility Relay Coupler [Sentry] Device Structural Scanner Storage Huge Storage Unit Processor Improved Signal Interpreter Hackware Relay Coupler [Sentry] Protection Improved Medium Armor Plating Weapon Axe Energy Gun Advanced Variable Charge Gun Energy Cannon Enhanced Nova Cannon Ballistic Gun Gauss Rifle Ballistic Cannon Heavy Flak Cannon Launcher Mini Grenade Launcher Special Weapon Improved Remote Datajack Impact Weapon Hammer Slashing Weapon Axe Piercing Weapon Lance Special Melee Weapon Advanced Datajack Build | -11 -10 -10 -9 -8 -8 -8 -8 -7 -7 -6 -6 -6 -6 -6 -6 -5 -5 -4 -4 -4 -4 -3 -2 -2 -2 -2 -1 ------- Run | Yrd Mat Min Mat Mat Gar Mat Gar Fac Gar Fac Gar Ext Cet Arc Hub Fac Gar Fac Gar Fac Gar Res Res Gar Res Gar Acc Slots Evolved 18 | . . . 2 2 . . . 2 . 2 . . . . . 2 . 2 . . . 2 2 . . . 2 Power 1 | . . . . . . . . . . . . . . . . . . . . . . 1 . . . . . Propulsion 6 | . . . 1 1 . . . 1 . 1 . . . . . . . . . . . . . . . . 2 Utility 11 | . . . 1 1 . . . 1 . 1 . . . . . 2 . 2 . . . 1 2 . . . . Weapon . | . . . . . . . . . . . . . . . . . . . . . . . . . . . . Parts Attached 360 | 6 4 5 16 16 15 11 13 10 11 6 2 6 5 3 13 34 44 10 5 . 12 33 11 20 10 12 27 Power 35 | 1 . . 3 . 1 . 1 . 2 1 . 2 1 . . 3 6 1 1 . 2 3 1 3 . 1 2 Engine 11 | 1 . . 3 . 1 . . . 1 1 . . . . . 2 1 . . . . . . . . . 1 Core 8 | . . . . . . . 1 . 1 . . 2 . . . 1 3 . . . . . . . . . . Reactor 16 | . . . . . . . . . . . . . 1 . . . 2 1 1 . 2 3 1 3 . 1 1 Propulsion 112 | 2 1 1 5 4 5 6 . 3 2 1 1 1 1 2 8 15 16 . . . 2 11 3 1 3 9 9 Treads 55 | . . . 5 2 3 6 . 3 2 1 1 1 1 2 8 . 5 . . . 2 8 . . . . 5 Leg 24 | 2 1 . . 1 2 . . . . . . . . . . 7 11 . . . . . . . . . . Wheel 1 | . . . . 1 . . . . . . . . . . . . . . . . . . . . . . . Hover 14 | . . 1 . . . . . . . . . . . . . 8 . . . . . 1 . . . . 4 Flight 18 | . . . . . . . . . . . . . . . . . . . . . . 2 3 1 3 9 . Utility 138 | 1 1 2 4 5 4 3 7 5 6 2 1 2 1 1 3 13 13 5 4 . 5 11 4 14 6 2 13 Device 42 | 1 . 1 1 1 1 . 1 3 1 . . . . . 1 6 2 4 1 . . 4 3 2 2 . 7 Storage 9 | . . 1 1 1 . . . 1 1 . . . . . . 1 . . . . 1 2 . . . . . Processor 8 | . . . . . . . . . . . . . . . . 1 . . . . . 1 1 . 2 . 3 Hackware 57 | . . . . . . 3 4 1 3 2 1 2 . . 1 4 6 1 3 . 3 4 . 12 2 2 3 Protection 22 | . 1 . 2 3 3 . 2 . 1 . . . 1 1 1 1 5 . . . 1 . . . . . . Artifact . | . . . . . . . . . . . . . . . . . . . . . . . . . . . . Weapon 75 | 2 2 2 4 7 5 2 5 2 1 2 . 1 2 . 2 3 9 4 . . 3 8 3 2 1 . 3 Energy Gun 8 | 1 . . . 2 1 . . . . . . . 1 . . 1 2 . . . . . . . . . . Energy Cannon 7 | . 1 . . 1 . . . . . . . . . . . . 1 2 . . . . . . . . 2 Ballistic Gun 15 | 1 . 2 2 1 2 . 1 . . . . . . . 1 . 2 . . . . 2 1 . . . . Ballistic Cannon 10 | . 1 . . 1 1 1 . 1 . 1 . . . . . 1 1 . . . 1 1 . . . . . Launcher 5 | . . . 1 1 1 . . . . . . . . . . . . . . . 1 . 1 . . . . Special Weapon 7 | . . . . . . . 1 . . . . . . . . . . 2 . . 1 2 . 1 . . . Impact Weapon 4 | . . . 1 1 . . . . . . . . . . 1 . 1 . . . . . . . . . . Slashing Weapon 12 | . . . . . . . 2 1 1 1 . 1 1 . . . 1 . . . . 1 1 1 1 . . Piercing Weapon 3 | . . . . . . . . . . . . . . . . 1 . . . . . 2 . . . . . Special Melee Weapon 4 | . . . . . . 1 1 . . . . . . . . . 1 . . . . . . . . . 1 Unidentified Prototypes 11 | . . 1 . 1 . . . . 1 1 . . 2 . . 1 . . . . . 1 . . 1 . 2 Corrupted Parts 2 | . . . 1 . . . . . . . . . . . . . . . . . . . . . . 1 . System Corruption 12 | . . . 10 . . . . . . . . . . . . . . . . . . . . . . 2 . Parts Lost 185 | . 2 1 6 11 3 1 3 . 1 2 1 8 4 . 8 4 30 2 2 . 5 36 1 6 3 17 28 Power 25 | . . . 1 1 . . 1 . 1 1 . 1 1 . . . 4 . 1 . 2 5 . 2 . 2 2 Propulsion 68 | . 1 . 1 4 2 1 1 . . . 1 3 2 . 5 2 14 . . . . 12 . . . 9 10 Utility 64 | . . . 3 3 . . 1 . . 1 . 2 . . 2 2 7 2 1 . 3 12 1 4 3 5 12 Weapon 28 | . 1 1 1 3 1 . . . . . . 2 1 . 1 . 5 . . . . 7 . . . 1 4 Highest Loss Streak 15 | . 2 1 3 10 3 1 2 . 1 2 1 4 4 . 7 3 12 1 1 . 3 12 1 2 2 12 15 To Critical Strikes 4 | . . . . . . . . . . . . . 1 . . . 2 . . . . 1 . . . . . Average Backups 15 | 1 4 5 7 10 9 11 12 13 22 25 26 19 14 20 27 4 16 22 19 18 20 19 6 7 7 6 4 Power . | . . . . . . . . . 1 . 1 1 1 1 . . 1 . . . . 1 . . 1 1 . Propulsion 2 | . . 1 1 . . . 1 . 1 4 3 1 2 5 9 . 3 3 2 2 2 3 1 1 . . . Utility 7 | . . . 2 3 6 7 7 8 13 15 15 12 7 8 9 1 7 10 10 9 10 8 . 2 2 1 2 Weapon 3 | . 1 1 1 3 . 2 3 3 5 4 4 4 3 4 5 . 4 5 4 4 3 3 2 3 2 3 1 Tool/Special . | . . . . . . . . . . . . . . . . . . . . . . . . . . . . Unused Backups 37 | . 3 . . 1 1 . . . 1 . . . . . 15 2 . 1 1 . 3 6 . . . . 3 Power 4 | . 1 . . . . . . . . . . . . . 1 . . . . . 2 . . . . . . Propulsion 9 | . 1 . . . . . . . . . . . . . 5 1 . 1 . . 1 . . . . . . Utility 18 | . . . . . . . . . 1 . . . . . 7 . . . 1 . . 6 . . . . 3 Weapon 4 | . 1 . . 1 . . . . . . . . . . 1 1 . . . . . . . . . . . Tool/Special 2 | . . . . . 1 . . . . . . . . . 1 . . . . . . . . . . . . Average Slot Usage (%) 78 | . 93 75 73 83 77 90 89 93 84 72 72 73 61 77 79 76 80 79 84 82 81 67 42 75 79 73 53 Engine 2 | . 14 8 5 8 3 9 7 . 2 5 6 . . . . 1 1 . . . . . . . . . . Core 1 | . . . . . . . 1 7 4 . . 5 . . . 3 1 . . . . . . . . . . Reactor 2 | . . . . . . . . . . . . . 4 6 5 . 2 5 5 5 4 6 3 4 4 3 . Treads 17 | . . . 21 28 25 35 35 34 32 20 19 22 12 23 28 . 8 15 15 13 14 12 . . . . 3 Leg 2 | . 26 16 . 1 4 . . . . . . . . . . 7 15 . . . . . . . . . . Flight 1 | . . . . . . . . . . . . . . . . . . . . . . . 12 13 13 16 3 Device 5 | . 14 13 5 9 9 9 6 5 . 2 . . . . . 13 2 10 9 10 6 6 4 9 8 2 7 Storage 5 | . . 13 11 9 9 9 9 7 7 6 6 6 6 6 5 1 5 5 5 5 5 3 3 4 4 4 . Processor 1 | . . . . . . . . . . . . . . . . 4 1 . . . . 2 4 1 2 8 9 Hackware 17 | . . . . . . 2 2 14 15 21 26 17 6 6 12 17 23 25 29 31 32 25 4 33 36 32 20 Protection 5 | . 12 1 9 9 8 7 9 6 5 1 . 6 20 20 12 1 5 5 7 5 4 . . . . . . Ballistic Gun 1 | . 11 16 6 1 7 1 2 1 . . . . 3 . 3 . . . . . . . 3 . . . . Ballistic Cannon 2 | . 7 . . 2 3 14 7 9 . 3 . 2 . . . . . . . . . 2 . . . . . Special Weapon 2 | . . . . . . . 2 . 6 2 4 1 . . . . . 1 5 8 3 2 . 3 3 . . Slashing Weapon 3 | . . . . . . . 3 3 6 4 6 3 2 6 4 5 1 3 4 1 4 2 3 4 4 4 2 Peak Build Rating 145 | 6 7 21 13 22 35 38 39 46 68 85 84 85 78 84 86 79 120 127 125 119 120 145 102 122 115 108 122 Average Rating 72 | 4 6 7 10 17 23 33 36 41 56 80 81 75 68 81 74 58 85 116 119 114 114 110 89 108 107 85 76 On Entrance 62 | . 6 5 11 13 14 35 35 38 46 66 83 81 63 78 84 19 77 112 122 116 116 112 40 95 115 108 63 Naked Turns . | . . . . . . . . . . . . . . . . . . . . . . . . . . . . Heaviest Build 204 | 10 13 13 36 51 75 79 79 104 162 169 161 177 189 189 189 91 134 131 124 109 162 204 36 43 41 39 30 Greatest Support 230 | 20 20 20 60 80 80 80 80 118 172 225 225 225 172 195 195 138 230 230 230 230 230 225 48 48 48 47 225 Greatest Overweight (x) 8 | . . . . 4 8 1 1 . 1 . . . 2 1 1 . 2 . . . 1 2 . . . 1 1 Average Overweight (x) . | . . . . . . . . . . . . . 1 . . . . . . . . . . . . . . Largest Inventory Capacity 30 | 5 5 8 15 15 15 15 15 25 30 30 30 30 30 30 30 25 25 25 25 25 30 30 10 10 10 10 10 Average Capacity 20 | 5 5 7 11 15 15 15 15 19 26 30 30 30 30 30 28 9 25 25 25 25 25 26 9 10 10 10 5 Most Carried 30 | 2 5 8 10 15 15 15 15 18 30 30 30 28 18 27 30 9 25 25 25 22 30 30 10 10 10 9 8 Average Carried 17 | 1 4 5 8 12 11 14 14 15 24 28 28 21 15 21 28 5 18 24 22 21 23 23 9 9 8 7 4 Final Capacity 30 | 5 5 8 15 15 15 15 15 25 30 30 30 30 30 30 5 25 25 25 25 25 30 5 10 10 10 10 5 Final Carried 30 | 2 5 8 10 8 15 15 15 18 30 30 28 14 18 27 5 9 25 25 22 21 30 5 10 10 9 8 4 Class Distribution -------------------- 44% | Botlord-Mutant 20% | Bothacker-Mutant 15% | Scavenger-Mutant 10% | Mutant 3% | Hacker-Mutant Dominant Class ---------------- Mutant | -10/Materials Mutant | -10/Mines Scavenger-Mutant | -9/Materials Scavenger-Mutant | -8/Materials Scavenger-Mutant | -8/Garrison Scavenger-Mutant | -8/Materials Scavenger-Mutant | -8/Garrison Bothacker-Mutant | -7/Factory Bothacker-Mutant | -7/Garrison Botlord-Mutant | -6/Factory Botlord-Mutant | -6/Garrison Botlord-Mutant | -6/Extension Bothacker-Mutant | -6/Cetus Bothacker-Mutant | -6/Archives Bothacker-Mutant | -6/Hub_04(d) Hacker-Scout | -5/Factory Botlord-Mutant | -5/Garrison Botlord-Mutant | -4/Factory Botlord-Mutant | -4/Garrison Botlord-Mutant | -4/Factory Botlord-Mutant | -4/Garrison Botlord-Mutant | -3/Research Mutant | -2/Research Botlord-Mutant | -2/Garrison Botlord-Mutant | -2/Research Hacker-Mutant | -2/Garrison Mutant | -1/Access Resources | -11 -10 -10 -9 -8 -8 -8 -8 -7 -7 -6 -6 -6 -6 -6 -6 -5 -5 -4 -4 -4 -4 -3 -2 -2 -2 -2 -1 ----------- Run | Yrd Mat Min Mat Mat Gar Mat Gar Fac Gar Fac Gar Ext Cet Arc Hub Fac Gar Fac Gar Fac Gar Res Res Gar Res Gar Acc Matter Collected 10142 | 272 186 86 242 268 389 649 928 442 463 320 406 370 141 66 254 404 861 219 231 222 426 1345 42 439 237 137 97 Remotely . | . . . . . . . . . . . . . . . . . . . . . . . . . . . . Salvage Created 10682 | 90 271 26 608 659 337 422 597 424 795 181 192 332 45 91 560 446 940 133 122 66 1036 1323 42 77 282 266 319 Parts 518 | 4 17 6 25 29 27 20 44 32 25 9 7 13 . 7 29 31 33 9 6 1 36 45 3 1 19 14 26 Haulers Intercepted 5 | . . . 2 1 . . . . . . . . . . . . . . . . . 1 . . . . 1 Recyclers Shooed 10 | . 1 . 1 . . . . 2 . . . . . . 1 1 . . . . . 2 . . . . 2 Parts Field Recycled . | . . . . . . . . . . . . . . . . . . . . . . . . . . . . Retrieved Matter . | . . . . . . . . . . . . . . . . . . . . . . . . . . . . Parts Self-Destructed . | . . . . . . . . . . . . . . . . . . . . . . . . . . . . Prevented . | . . . . . . . . . . . . . . . . . . . . . . . . . . . . Kills | -11 -10 -10 -9 -8 -8 -8 -8 -7 -7 -6 -6 -6 -6 -6 -6 -5 -5 -4 -4 -4 -4 -3 -2 -2 -2 -2 -1 ------- Run | Yrd Mat Min Mat Mat Gar Mat Gar Fac Gar Fac Gar Ext Cet Arc Hub Fac Gar Fac Gar Fac Gar Res Res Gar Res Gar Acc Combat Hostiles Destroyed 194 | . 6 4 12 13 12 10 24 7 3 6 4 6 1 1 12 4 17 3 2 1 6 25 . 1 4 6 4 Melee 53 | . . . 3 1 1 . 3 1 1 . 4 4 . 1 7 4 4 1 1 1 2 3 . 1 3 6 1 Guns 40 | . 4 4 2 4 7 . 2 2 . 1 . 1 1 . 4 . 5 . . . . 3 . . . . . Cannons 63 | . 2 . . 3 1 10 19 4 2 5 . 1 . . . . 3 2 1 . . 10 . . . . . AOE 27 | . . . 3 4 2 . . . . . . . . . . . 1 . . . 4 9 . . 1 . 3 Classes Destroyed 18 | 2 2 2 5 2 1 . 2 . . . . . . 1 . . 1 . . . . . . . . . . Worker 7 | . 1 . 1 2 . . . . . . . . . . . . . . . . . 2 . . . . 1 Builder 17 | . . . . 1 . . . 1 . . . 2 . . . 3 . 2 . . . . 2 . 3 . 3 Tunneler 5 | 1 . . . . . . . 2 . . . . . . . . . . . . . 2 . . . . . Hauler 5 | . . . 2 1 . . . . . . . . . . . . . . . . . 1 . . . . 1 Recycler 10 | 1 1 . 1 3 . . . 2 . . . . . . . 1 . . . . . 1 . . . . . Operator 2 | . . . . . . . . . . . . . . 1 . 1 . . . . . . . . . . . Watcher 7 | . . . 1 1 . 1 . . . . . 1 . . 1 1 . . . . . . . . . 1 . Swarmer 38 | . . 3 3 . 3 . 9 1 . 1 1 . . . 4 2 2 1 . . . . . . 2 5 1 Cutter 3 | . . . . . . . . . . . . . . . . . 3 . . . . . . . . . . Saboteur 1 | . . . . . 1 . . . . . . . . . . . . . . . . . . . . . . Grunt 73 | . 6 . 5 8 2 4 7 3 3 1 1 3 . . 3 . 4 . 1 1 3 16 . . 1 . 1 Brawler 5 | . . . 1 . . 1 . . . 1 . . . . . . 2 . . . . . . . . . . Duelist 2 | . . . 1 . . . . 1 . . . . . . . . . . . . . . . . . . . Sentry 27 | . . . 2 4 4 5 . . . . . 1 . 1 3 . 6 . . . 1 . . . . . . Specialist 1 | . . . . . . . 1 . . . . . . . . . . . . . . . . . . . . Hunter 23 | . . . . 1 2 . 1 . . 2 2 1 . . 1 . . 1 1 . 2 7 . 1 1 . . Programmer 19 | . . . . . . . 6 2 . 1 . . . . 1 2 . 1 . . . 3 . . . 1 2 Cetus Guard 1 | . . . . . . . . . . . . . 1 . . . . . . . . . . . . . . Assembled 1 | . . 1 . . . . . . . . . . . . . . . . . . . . . . . . . Butcher 1 | . . . . . . . . . . . . 1 . . . . . . . . . . . . . . . Best Kill Streak 15 | 2 5 2 5 15 4 8 6 3 2 3 1 2 1 1 3 2 4 2 1 1 3 13 1 1 2 4 4 Combat Bots Only 12 | . 3 2 3 6 4 8 6 3 2 3 1 1 1 1 2 2 4 1 1 1 3 12 . 1 2 4 3 Max Kills in Single Turn 4 | 1 1 1 2 3 1 1 2 1 1 1 1 1 1 1 1 1 1 1 1 1 2 4 1 1 1 1 2 Gunslinging . | . . . . . . . . . . . . . . . . . . . . . . . . . . . . Exploded 3 | . . . 2 2 1 . . . . . . . . . . . 1 . . . 2 3 . . 1 . 2 Melee 1 | . . . 1 1 1 . 1 1 1 . 1 1 . 1 1 1 1 1 1 1 1 1 . 1 1 1 1 Uniques/NPCs Destroyed . | . . . . . . . . . . . . . . . . . . . . . . . . . . . . Combat | -11 -10 -10 -9 -8 -8 -8 -8 -7 -7 -6 -6 -6 -6 -6 -6 -5 -5 -4 -4 -4 -4 -3 -2 -2 -2 -2 -1 -------- Run | Yrd Mat Min Mat Mat Gar Mat Gar Fac Gar Fac Gar Ext Cet Arc Hub Fac Gar Fac Gar Fac Gar Res Res Gar Res Gar Acc Hostile Shots Fired 2947 | . 64 18 93 148 68 52 146 42 41 60 102 158 13 5 199 74 265 28 83 6 85 563 32 85 24 97 396 Missed 901 | . 14 3 22 37 18 12 38 17 13 14 29 35 4 2 57 33 65 10 30 3 16 167 25 49 15 35 138 Hits 2046 | . 50 15 71 111 50 40 108 25 28 46 73 123 9 3 142 41 200 18 53 3 69 396 7 36 9 62 258 Melee 44 | . . . 7 . 3 . . . . 3 2 . . . . . 28 . . . . . . 1 . . . Projectile 2002 | . 50 15 64 111 47 40 108 25 28 43 71 123 9 3 142 41 172 18 53 3 69 396 7 35 9 62 258 AOE 3 | . . . . . . . . . . . . . . . . 1 . . 1 . . 1 . . . . . Critical Strikes 103 | . . . 1 10 1 3 4 2 3 1 3 2 3 . 5 3 12 1 4 1 1 21 . . 1 4 17 Actively Blocked 17 | . . . . . . . . . . . . . . . . 1 . . . . . . . . . . 16 Part Disruptions 7 | . . . . . . . . . . . 1 . . . 3 2 . . . . . . . . . . 1 Damage Taken 39382 | . 566 115 964 1806 743 628 1332 326 329 968 1186 1721 241 127 2559 884 4705 419 1074 124 1706 8013 189 967 212 1612 5866 Core 6373 | . 155 39 189 172 152 58 105 28 7 143 84 169 . . 361 142 770 26 137 21 81 1113 . 190 45 573 1613 Absorbed by Shields 19 | . . . . . . . . . . . . . . . . 7 . . . . . . . 12 . . . Reduced by Siege Mode 380 | . . . . . . . . . . . . . . . . . 37 . . . 69 122 . . . . 152 Redirected to Shielding 82 | . . . . . . . . . . . . . . . . 82 . . . . . . . . . . . Ignored by Resistances 645 | . . . . . 26 19 132 . 113 . . . . . . . . . . . . 355 . . . . . Regen/Repaired (Parts) 1275 | . . . . . . . . 128 . . . . . . . . . 83 60 833 . 171 . . . . . Core Remaining (%) 43 | 100 . 22 52 . . . 11 . 95 . . . . . 10 . 8 . . . 76 14 . . . 44 . Volleys Fired 618 | 4 24 10 15 34 27 26 53 15 17 22 26 39 8 . 12 . 63 8 30 6 26 111 . 21 12 . 9 Largest 2 | 2 2 2 1 2 2 2 2 2 1 2 1 1 2 . 2 . 2 2 1 1 1 2 . 1 1 . 1 Hottest 240 | 70 90 40 30 138 93 88 88 84 40 77 33 33 74 . 63 . 123 240 120 7 120 116 . 7 49 . 120 Shots Fired 803 | 8 48 12 15 49 39 53 87 30 17 42 25 39 12 . 23 . 65 9 30 6 25 128 . 21 12 . 8 Gun 252 | 8 19 12 13 22 28 . 18 13 . 8 . 9 8 . 23 . 39 . . . . 32 . . . . . Cannon 399 | . 29 . . 24 6 53 63 17 8 31 11 28 4 . . . 26 8 4 . 7 77 . . . . 3 Launcher 33 | . . . 2 3 5 . . . . . . . . . . . . . . . 5 10 . . 3 . 5 Special 119 | . . . . . . . 6 . 9 3 14 2 . . . . . 1 26 6 13 9 . 21 9 . . Kinetic 565 | 4 43 12 13 19 26 53 81 30 8 39 11 37 12 . 23 . 39 6 . . . 109 . . . . . Thermal 86 | 4 5 . . 27 8 . . . . . . . . . . . 26 2 4 . 7 . . . . . 3 Explosive 33 | . . . 2 3 5 . . . . . . . . . . . . . . . 5 10 . . 3 . 5 Electromagnetic . | . . . . . . . . . . . . . . . . . . . . . . . . . . . . Robot Hit Streak 18 | 5 7 2 5 10 10 4 5 7 7 9 11 6 15 . 2 . 13 5 13 9 5 8 . 14 18 . 5 Robot Miss Streak 10 | 1 5 4 4 2 2 10 8 3 2 6 1 4 2 . 2 . 4 2 2 . 2 6 . 2 2 . 2 Penetration Max 1 | . . . . . 1 . . . . . . . . . 1 . . . . . . 1 . . . . . Secondary Targets . | . . . . . . . . . . . . . . . . . . . . . . . . . . . . Shots Hit Robots 902 | 5 24 5 35 45 30 51 74 27 51 27 38 67 11 2 28 36 78 17 33 7 56 83 3 26 16 17 10 Core Hits 450 | 3 10 5 10 38 18 43 61 15 17 23 8 14 7 2 14 10 18 6 2 1 28 68 . 2 5 9 13 Critical Kills 5 | . . . 1 . 1 . . . . . . . . . 1 . . . . . . 2 . . . . . Critical Parts Destroyed 16 | . . . 5 . 1 . . . . . . . . . 1 . 6 . . . . 3 . . . . . Critical Strikes 73 | . 1 . 6 4 2 . 1 . 2 . 7 3 . . 3 2 9 2 2 . 4 18 . 3 1 2 1 Burn 4 | . . . . 4 . . . . . . . . . . . . . . . . . . . . . . . Destroy 8 | . . . . . 1 . . . . . . . . . 2 . . . . . . 5 . . . . . Blast 16 | . 1 . . . . . . . 1 . 1 1 . . . . . 1 . . . 11 . . . . . Smash 13 | . . . 6 . 1 . . . . . . . . . . . 6 . . . . . . . . . . Sever 30 | . . . . . . . 1 . 1 . 6 2 . . 1 2 1 1 2 . 4 2 . 3 1 2 1 Impale 2 | . . . . . . . . . . . . . . . . . 2 . . . . . . . . . . Melee Attacks 728 | . . . 35 15 9 10 45 17 72 4 32 42 . 2 30 58 98 22 23 2 62 25 17 40 15 30 23 Impact 111 | . . . 35 15 9 . . . . . . . . . 15 . 37 . . . . . . . . . . Slashing 519 | . . . . . . . 42 17 71 4 32 17 . 2 15 48 22 17 23 2 62 21 17 40 15 30 22 Piercing 31 | . . . . . . . . . . . . . . . . 10 18 . . . . 3 . . . . . Sneak Attacks 79 | . . . 2 1 . 2 1 8 . . 1 25 . 1 1 8 2 5 . . 9 2 2 1 3 . 5 Combat Hostiles 15 | . . . . . . . . . . . 1 1 . . 1 1 2 . . . 8 . . 1 . . . Follow-up Attacks 4 | . . . . . . . . . . . . . . . . 3 1 . . . . . . . . . . Damage Inflicted 33064 | 65 389 61 1081 1705 882 790 1548 1038 2731 590 972 1607 297 124 1172 1588 2273 547 483 39 3961 5543 235 487 885 688 1283 Guns 3288 | 65 128 49 109 307 461 . 200 181 . 50 . 155 159 . 348 . 539 . . . . 537 . . . . . Cannons 7847 | . 261 . . 492 106 789 957 302 189 540 328 793 138 . . . 525 258 169 . 209 1791 . . . . . Explosions 6028 | . . . 240 758 285 . . . . . . . . . . . . . . . 928 2597 . . 405 . 815 Melee 15532 | . . . 729 148 30 . 391 555 2542 . 644 494 . 124 783 1588 1161 289 314 39 2824 520 235 487 480 688 467 Ramming 369 | . . 12 3 . . 1 . . . . . 165 . . 41 . 48 . . . . 98 . . . . 1 Kinetic 9693 | 29 336 49 109 392 446 789 1157 483 189 590 328 948 297 . 348 . 678 197 . . . 2328 . . . . . Thermal 1442 | 36 53 . . 407 121 . . . . . . . . . . . 386 61 169 . 209 . . . . . . Explosive 6028 | . . . 240 758 285 . . . . . . . . . . . . . . . 928 2597 . . 405 . 815 Electromagnetic . | . . . . . . . . . . . . . . . . . . . . . . . . . . . . Impact 2114 | . . . 729 148 30 . . . . . . . . . 429 . 778 . . . . . . . . . . Slashing 12715 | . . . . . . . 391 555 2542 . 644 494 . 124 354 1288 107 289 314 39 2824 393 235 487 480 688 467 Piercing 703 | . . . . . . . . . . . . . . . . 300 276 . . . . 127 . . . . . Highest Corruption 39 | . 1 1 10 . 1 1 6 . . 11 14 14 14 14 27 10 39 . 2 2 2 19 2 2 6 11 17 Average Corruption 10 | . 1 1 10 . 1 1 4 . . 10 12 14 14 14 15 7 32 . 1 2 2 6 1 2 3 8 9 Corruption Purged . | . . . . . . . . . . . . . . . . . . . . . . . . . . . . Corruption Blocked . | . . . . . . . . . . . . . . . . . . . . . . . . . . . . Effects 379 | . 2 . 14 . 2 5 31 . . 10 24 35 17 8 24 13 107 . 7 8 21 22 1 6 7 4 11 Message Errors 78 | . . . 2 . . . 10 . . 1 3 8 5 3 4 1 22 . 1 . 5 7 . 1 1 2 2 Matter Fused 106 | . . . 2 . . 1 6 . . 3 13 8 3 4 5 5 30 . 3 3 6 6 . 2 1 1 4 Heat Flow Errors 36 | . 1 . 3 . . 1 2 . . . 2 6 . . 1 2 9 . 1 1 2 1 1 1 1 . 1 Energy Discharges 39 | . . . . . . . 5 . . 2 1 3 5 . 5 . 14 . . . . 1 . . 2 . 1 Parts Rejected 8 | . . . . . . . . . . . . . . . 2 1 2 . . . . 1 . 1 . 1 . Parts Fused 5 | . . . . . . . . . . . 1 1 . . . . 3 . . . . . . . . . . Data Loss (minor) 51 | . 1 . 4 . 1 1 2 . . 1 3 6 3 1 2 3 7 . 1 4 5 4 . 1 1 . . Data Loss (major) 14 | . . . . . . 1 1 . . 1 . 2 . . 1 1 3 . . . 2 . . . 1 . 1 Misfires 4 | . . . . . . 1 1 . . 1 . . . . . . 1 . . . . . . . . . . Alerts 10 | . . . 1 . 1 . 2 . . 1 . 1 1 . . . 1 . 1 . . 1 . . . . . Misdirections 13 | . . . 2 . . . . . . . . . . . 3 . 7 . . . . . . . . . 1 Weapon Failures 15 | . . . . . . . 2 . . . 1 . . . 1 . 8 . . . 1 1 . . . . 1 Overload Shots . | . . . . . . . . . . . . . . . . . . . . . . . . . . . . Overflow Damage 2133 | . 7 . 167 98 30 . 23 189 137 38 47 89 . . 80 252 310 34 15 . 85 94 145 . 138 29 126 Projectiles 144 | . 7 . . 3 . . 3 1 . 38 2 44 . . . . . . 6 . . 40 . . . . . Explosions 187 | . . . 14 78 . . . . . . . . . . . . . . . . . 2 . . 4 . 89 Melee 1802 | . . . 153 17 30 . 20 188 137 . 45 45 . . 80 252 310 34 9 . 85 52 145 . 134 29 37 Knockbacks 74 | . 2 . 7 3 . 7 15 2 2 8 . 7 . . 3 . 4 1 . . . 13 . . . . . Impact 15 | . . . 6 . . . . . . . . 2 . . 2 . 4 . . . . 1 . . . . . Kinetic 54 | . 2 . . 3 . 7 15 2 2 8 . 4 . . . . . 1 . . . 10 . . . . . Secondary 5 | . . . 1 . . . . . . . . 1 . . 1 . . . . . . 2 . . . . . Self-Inflicted Damage 313 | . . . 27 153 41 . . . . . . . . . . . . . . . . . . . . . 92 Shots 10 | . . . 1 4 2 . . . . . . . . . . . . . . . . . . . . . 3 Rammed 18 | . . . . . . 1 . . . . . 6 . . 4 . . . . . . 5 . . . . 2 Targets Rammed 37 | . . 11 1 . . 1 . . . . . 6 . . 4 . 6 . . . . 5 . . . . 3 Kicked 17 | . . 11 . . . . . . . . . . . . . . 6 . . . . . . . . . . Crushed 2 | . . . 1 . . . . . . . . . . . . . . . . . . . . . . . 1 Highest Temperature 330 | 27 270 . 212 261 14 318 292 96 110 32 205 275 28 . 195 270 330 144 233 225 276 269 168 187 241 8 162 Average Temperature 81 | 12 77 . 93 104 8 76 62 36 65 13 100 104 12 . 77 117 101 77 106 101 105 65 86 99 134 8 56 Received Heat Transfer 6046 | . 309 . 318 837 90 387 414 114 153 108 112 549 . 9 414 12 954 27 207 48 109 611 9 48 . 81 126 Effects 4 | . . . . 1 . . . . . . . . . . . . . . . . 1 1 . . 1 . . Interference 4 | . . . . 1 . . . . . . . . . . . . . . . . 1 1 . . 1 . . Siege Activations 8 | . . . . . . . . . . . . . 1 . 1 . 1 1 . . 1 2 . . . . 1 Total Turns 111 | . . . . . . . . . . . . . 28 . 6 . 21 2 . . 13 34 . . . . 7 Longest Duration 28 | . . . . . . . . . . . . . 28 . 6 . 21 2 . . 13 26 . . . . 7 Martial Activations . | . . . . . . . . . . . . . . . . . . . . . . . . . . . . Shielding Activations . | . . . . . . . . . . . . . . . . . . . . . . . . . . . . Robots Disrupted . | . . . . . . . . . . . . . . . . . . . . . . . . . . . . Combat Hostiles . | . . . . . . . . . . . . . . . . . . . . . . . . . . . . Robots Corrupted 16 | . . . 6 2 1 . . . . . . 1 . . 1 . 4 . . . . 1 . . . . . Combat Hostiles 11 | . . . 4 1 1 . . . . . . . . . 1 . 4 . . . . . . . . . . Parts Fried 19 | . . . 2 3 1 . . . . . . 2 . . 2 . 6 . . . . 3 . . . . . Impact Corruptions 27 | . . . 10 2 1 . . . . . . 1 . . 2 . 9 . . . . 2 . . . . . Robots Melted . | . . . . . . . . . . . . . . . . . . . . . . . . . . . . Combat Hostiles . | . . . . . . . . . . . . . . . . . . . . . . . . . . . . Parts Melted 6 | . . . . 1 . . . . . . . . . . 2 . 1 1 1 . . . . . . . . Heat Transferred 2368 | 111 111 . . 1110 259 . . . . . . . . . . . 407 37 148 . 185 . . . . . . Parts Sabotaged 7 | . . . . . 7 . . . . . . . . . . . . . . . . . . . . . . Parts Stolen . | . . . . . . . . . . . . . . . . . . . . . . . . . . . . Parts Stripped . | . . . . . . . . . . . . . . . . . . . . . . . . . . . . Power Chain Reactions . | . . . . . . . . . . . . . . . . . . . . . . . . . . . . Alert | -11 -10 -10 -9 -8 -8 -8 -8 -7 -7 -6 -6 -6 -6 -6 -6 -5 -5 -4 -4 -4 -4 -3 -2 -2 -2 -2 -1 ------- Run | Yrd Mat Min Mat Mat Gar Mat Gar Fac Gar Fac Gar Ext Cet Arc Hub Fac Gar Fac Gar Fac Gar Res Res Gar Res Gar Acc Maximum Alert Level 3 | . . . . 1 2 2 3 2 3 2 2 3 1 . 1 1 3 2 . . 2 1 . 1 1 1 2 Low Security (%) 44 | 100 100 100 100 80 12 13 . . . . . . 86 100 82 79 22 86 100 100 64 74 100 57 24 18 22 Level 1 26 | . . . . 19 41 83 29 19 20 . 38 40 13 . 17 20 39 5 . . 29 25 . 42 75 81 67 Level 2 19 | . . . . . 46 3 16 80 42 100 61 24 . . . . 23 7 . . 5 . . . . . 10 Level 3 9 | . . . . . . . 54 . 36 . . 34 . . . . 14 . . . . . . . . . . Level 4 . | . . . . . . . . . . . . . . . . . . . . . . . . . . . . Level 5 . | . . . . . . . . . . . . . . . . . . . . . . . . . . . . High Security . | . . . . . . . . . . . . . . . . . . . . . . . . . . . . Max Security . | . . . . . . . . . . . . . . . . . . . . . . . . . . . . Peak Influence 1087 | 10 183 64 130 268 578 433 1082 567 1000 582 563 1087 282 46 296 263 842 441 190 74 433 336 175 329 365 347 530 Initial 567 | . . 64 . 51 146 281 276 567 325 525 296 295 282 16 . 100 115 441 67 69 24 201 43 116 175 210 204 Average 294 | 1 53 18 68 70 358 255 646 448 592 477 428 552 140 16 93 143 423 130 105 26 195 123 40 197 239 252 254 Influence Increases 14313 | 10 297 70 403 495 462 488 936 314 725 284 397 1374 165 123 520 519 1227 595 316 75 844 882 283 626 541 480 862 Destroy 0b10 Robot/C 5220 | . 120 60 240 260 240 340 540 140 140 200 120 580 80 80 240 80 440 160 40 20 140 500 . 60 160 160 80 Destroy 0b10 Robot/NC 355 | 10 10 . 25 40 . 10 . 25 30 5 . 20 5 5 10 30 . 20 . . 25 30 10 . 15 5 25 Destroy Leader 790 | . 20 10 66 54 . 74 30 50 10 32 10 84 . . 72 32 50 22 10 . 20 62 . 10 30 20 22 Allied During Kill 1349 | . . . . . . 28 36 . 14 25 11 624 70 23 8 . 21 95 33 20 132 4 . 50 138 17 . Successful Hack 706 | . 12 . 4 8 . 5 21 48 14 14 . 42 8 . 4 121 52 55 30 3 30 22 69 18 84 . 42 Select Force Hacks 240 | . 30 . 30 . . . . . . . . . . . 150 . . . . . . . . . . . 30 Disable Machine 435 | . . . . 30 . . . 15 15 . . 15 . 15 . 15 . 195 . 30 15 30 . 15 . . 45 Anti-Garrison Action 2150 | . . . . . 200 . 250 . 400 . 100 . . . . . 400 . 150 . 350 . . 250 . 50 . Destroy Structure 1283 | . . . 8 43 22 1 59 6 72 8 36 9 2 . 6 16 144 48 53 2 132 174 39 103 69 18 213 Partial Spotted 75 | . 15 . . . . . . 15 . . . . . . . . . . . . . . 15 15 . . 15 Lose Combat Pursuer 1710 | . 90 . 30 60 . 30 . 15 30 . 120 . . . 30 225 120 . . . . 60 150 105 45 210 390 Influence Decreases 13821 | 10 130 235 282 393 109 641 279 931 190 861 257 1432 629 164 315 559 550 1341 279 173 521 1162 206 469 573 420 710 Entered New Map 3709 | . . 103 2 72 79 297 149 515 140 475 127 268 223 25 . 105 50 401 29 64 11 157 35 39 137 70 136 Time Decay 4557 | 10 110 122 220 201 . 254 . 416 . 286 . 374 206 66 217 374 . 454 . 107 . 479 161 . 206 . 294 Lost Part 1840 | . 20 10 60 110 30 10 30 . 10 20 10 80 40 . 70 40 300 20 20 . 50 360 10 60 30 170 280 Lost Ally 2865 | . . . . 10 . 80 100 . 40 80 120 160 160 73 28 40 200 166 230 2 460 166 . 370 200 180 . Purge Threat 850 | . . . . . . . . . . . . 550 . . . . . 300 . . . . . . . . . Squads Dispatched 69 | . 4 . 3 3 . 4 . 5 . . . 5 . . 8 5 . 7 . 4 . 8 3 . 5 . 5 Investigation 25 | . 3 . 2 . . 1 . . . . . 4 . . 4 1 . 4 . 1 . 1 1 . 2 . 1 Extermination 13 | . . . . . . . . 2 . . . . . . 1 1 . 2 . . . 2 1 . 1 . 3 Reinforcement 15 | . 1 . 1 1 . 1 . . . . . 1 . . 1 1 . 1 . . . 5 1 . . . 1 Assault 4 | . . . . . . . . . . . . . . . 2 2 . . . . . . . . . . . Garrison 12 | . . . . 2 . 2 . 3 . . . . . . . . . . . 3 . . . . 2 . . Intercept . | . . . . . . . . . . . . . . . . . . . . . . . . . . . . Searches Triggered . | . . . . . . . . . . . . . . . . . . . . . . . . . . . . Construction Impeded 4 | . . . . . . . . . . . . . . . . . . 1 . . . 1 1 . . . 1 Haulers Reinforced 3 | . . . . . . . . . . . . . . . 1 . . . . . . 2 . . . . . Active Scanning Responses . | . . . . . . . . . . . . . . . . . . . . . . . . . . . . Cargo Convoy Interrupts 1 | . . . . . . . . . . . . . . . . . . . . . . 1 . . . . . Alert ID Control Effect 73 | . . . . . . . . . . . . . . . . . . 15 10 4 25 . . 7 6 6 . Stealth | -11 -10 -10 -9 -8 -8 -8 -8 -7 -7 -6 -6 -6 -6 -6 -6 -5 -5 -4 -4 -4 -4 -3 -2 -2 -2 -2 -1 --------- Run | Yrd Mat Min Mat Mat Gar Mat Gar Fac Gar Fac Gar Ext Cet Arc Hub Fac Gar Fac Gar Fac Gar Res Res Gar Res Gar Acc Distress Signals 26 | . 1 . 1 2 . 2 2 2 . . . 2 1 . 1 . . 2 . . . 2 1 1 . 1 5 Communications Jammed 2 | . . . . . . . . . . . . . . . . . . 1 . . . 1 . . . . . Distress Signals 1 | . . . . . . . . . . . . . . . . . . . . . . 1 . . . . . Times Spotted 656 | . 19 4 19 25 14 29 37 11 22 14 28 29 5 3 38 18 40 22 32 13 24 55 16 35 19 38 47 Peak Tracking Total 20 | . 9 3 7 8 6 6 8 2 5 3 6 6 5 2 20 5 7 5 10 4 4 12 6 8 9 19 16 Tactical Retreats 54 | . 2 . 2 2 . 1 . 1 2 . 5 . . . 1 8 7 . . . . 2 3 2 1 3 12 Traps | -11 -10 -10 -9 -8 -8 -8 -8 -7 -7 -6 -6 -6 -6 -6 -6 -5 -5 -4 -4 -4 -4 -3 -2 -2 -2 -2 -1 ------- Run | Yrd Mat Min Mat Mat Gar Mat Gar Fac Gar Fac Gar Ext Cet Arc Hub Fac Gar Fac Gar Fac Gar Res Res Gar Res Gar Acc Traps Triggered 31 | . 1 . . 2 3 . 1 . 6 3 . 1 . . . . 3 3 . . . 2 2 2 1 1 . Indirectly . | . . . . . . . . . . . . . . . . . . . . . . . . . . . . Trap Hack Attempts 40 | . . . . . . . 3 . . . 17 . . . . . . . 20 . . . . . . . . Triggered 1 | . . . . . . . . . . . 1 . . . . . . . . . . . . . . . . Disarmed 4 | . . . . . . . 1 . . . . . . . . . . . 3 . . . . . . . . Reprogrammed 1 | . . . . . . . 1 . . . . . . . . . . . . . . . . . . . . Reused . | . . . . . . . . . . . . . . . . . . . . . . . . . . . . Traps Extracted . | . . . . . . . . . . . . . . . . . . . . . . . . . . . . Installed . | . . . . . . . . . . . . . . . . . . . . . . . . . . . . Triggered . | . . . . . . . . . . . . . . . . . . . . . . . . . . . . Machines | -11 -10 -10 -9 -8 -8 -8 -8 -7 -7 -6 -6 -6 -6 -6 -6 -5 -5 -4 -4 -4 -4 -3 -2 -2 -2 -2 -1 ---------- Run | Yrd Mat Min Mat Mat Gar Mat Gar Fac Gar Fac Gar Ext Cet Arc Hub Fac Gar Fac Gar Fac Gar Res Res Gar Res Gar Acc Machines Disabled 65 | . . . . 2 3 . 3 1 5 . 2 2 . 1 . 1 5 13 3 2 9 2 . 7 . 1 3 Max in Single Turn 1 | . . . . 1 1 . 1 1 1 . 1 . . . . 1 1 1 1 1 1 1 . 1 . 1 1 Garrison Access 3 | . . . . . . . . . . . . . . . 1 1 . . . . . 1 . . . . . Garrison Relay 29 | . . . . . 3 . 3 . 4 . 2 . . . . . 4 . 3 . 4 . . 5 . 1 . Phase Generator 2 | . . . . . 1 . . . . . . . . . . . . . . . 1 . . . . . . Network Hub 3 | . . . . . . . . . . . . . . . 3 . . . . . . . . . . . . Machines Repaired . | . . . . . . . . . . . . . . . . . . . . . . . . . . . . Machines Dismantled 3 | . . . . . . . . . . . . . . . . . . 1 . 1 1 . . . . . . Machines Sabotaged 3 | . . . . . . . . . . . . . . . 3 . . . . . . . . . . . . Overloaded Fab Kills . | . . . . . . . . . . . . . . . . . . . . . . . . . . . . Hacking | -11 -10 -10 -9 -8 -8 -8 -8 -7 -7 -6 -6 -6 -6 -6 -6 -5 -5 -4 -4 -4 -4 -3 -2 -2 -2 -2 -1 --------- Run | Yrd Mat Min Mat Mat Gar Mat Gar Fac Gar Fac Gar Ext Cet Arc Hub Fac Gar Fac Gar Fac Gar Res Res Gar Res Gar Acc Machines Accessed 109 | . 7 2 4 3 1 4 4 4 3 3 2 14 2 . 5 12 4 10 1 2 3 4 6 2 3 . 4 Terminals 80 | . 6 1 3 2 1 1 4 2 3 2 2 14 2 . 5 7 4 5 1 . 3 2 5 2 . . 3 Fabricators 4 | . . . . . . . . . . . . . . . . 1 . 2 . . . . . . 1 . . Repair Stations 6 | . . . . . . . . 1 . . . . . . . 1 . 1 . 1 . 1 . . 1 . . Recycling Units 4 | . 1 . 1 . . 1 . . . . . . . . . 1 . . . . . . . . . . . Scanalyzers 1 | . . . . . . 1 . . . . . . . . . . . . . . . . . . . . . Garrison Access 13 | . . . . 1 . 1 . 1 . 1 . . . . . 2 . 2 . 1 . 1 1 . 1 . 1 Total Hacks 397 | . 18 3 10 10 2 11 8 12 5 11 4 40 5 . 8 64 21 67 3 13 12 9 26 2 17 . 16 Successful 188 | . 12 2 6 4 1 4 3 7 2 3 1 17 2 . 7 37 6 30 2 10 4 6 9 2 6 . 5 Failed 208 | . 6 1 4 6 1 7 5 5 3 8 3 23 3 . 1 26 15 37 1 3 8 3 17 . 11 . 11 Catastrophic 50 | . . 1 1 1 1 1 2 1 2 3 . 5 1 . . 4 8 4 . 2 2 1 4 . 3 . 3 Database Lockouts 1 | . . . . . . . . . . . . . . . . 1 . . . . . . . . . . . Manual 239 | . 14 1 5 7 . 8 1 9 1 7 . 19 . . 8 46 14 46 1 4 4 5 24 . 2 . 13 Terminals 305 | . 17 2 9 8 2 5 8 8 5 7 4 40 5 . 8 51 21 47 3 . 12 4 24 2 . . 13 Fabricators 19 | . . . . . . . . . . . . . . . . 3 . 9 . . . . . . 7 . . Repair Stations 26 | . . . . . . . . 2 . . . . . . . 1 . 4 . 9 . 3 . . 7 . . Recycling Units 6 | . 1 . 1 . . 2 . . . . . . . . . 2 . . . . . . . . . . . Scanalyzers 2 | . . . . . . 2 . . . . . . . . . . . . . . . . . . . . . Garrison Access 38 | . . . . 2 . 2 . 2 . 4 . . . . . 7 . 7 . 4 . 2 2 . 3 . 3 Terminal Hacks 68 | . 6 2 3 1 1 . 3 1 2 . 1 8 2 . . 14 4 10 2 . 4 . 1 2 . . 1 Record 1 | . . . . . . . . . . . . . 1 . . . . . . . . . . . . . . Part Schematic 1 | . . . . . . . . . . . . . . . . . . 1 . . . . . . . . . Robot Schematic 3 | . . . . . . . . . . . . . . . . 2 . 1 . . . . . . . . . Robot Analysis 11 | . 3 . . . . . . 1 . . . . . . . 7 . . . . . . . . . . . Prototype ID Bank 3 | . . . 1 . . . . . . . . . . . . 2 . . . . . . . . . . . Open Door 14 | . . 1 . . . . 1 . 1 . . 7 1 . . . 1 . . . 1 . . 1 . . . Open DSF 1 | . . . . . . . . . . . . . . . . . . . . . . . 1 . . . . Branch Access Points 1 | . 1 . . . . . . . . . . . . . . . . . . . . . . . . . . Emergency Access Points 5 | . . . . . . . 1 . 1 . . . . . . . 1 . 1 . 1 . . . . . . Terminal Index 3 | . 1 . . . . . . . . . . . . . . 1 . 1 . . . . . . . . . Fabricator Index 1 | . . . . . . . . . . . . . . . . . . 1 . . . . . . . . . Repair Station Index 1 | . . . . . . . . . . . . . . . . . . 1 . . . . . . . . . Garrison Index 2 | . . . . . . . . . . . . . . . . 1 . 1 . . . . . . . . . Alert Level 1 | . . . 1 . . . . . . . . . . . . . . . . . . . . . . . . Unreport Threat 2 | . . . . . . . . . . . . . . . . . . 2 . . . . . . . . . Locate Traps 1 | . . . . . . . . . . . . . . . . . . 1 . . . . . . . . . Dispatch Records 1 | . . 1 . . . . . . . . . . . . . . . . . . . . . . . . . Zone Layout 7 | . 1 . 1 1 . . . . . . . 1 . . . 1 . 1 . . . . . . . . 1 Garrison Registry 6 | . . . . . 1 . 1 . . . 1 . . . . . . . 1 . 1 . . 1 . . . Patrol Navigation 2 | . . . . . . . . . . . . . . . . . 1 . . . 1 . . . . . . Security Stations 1 | . . . . . . . . . . . . . . . . . 1 . . . . . . . . . . Fabricator Hacks 9 | . . . . . . . . . . . . . . . . 2 . 5 . . . . . . 2 . . Load Schematic 4 | . . . . . . . . . . . . . . . . 1 . 2 . . . . . . 1 . . Build 5 | . . . . . . . . . . . . . . . . 1 . 3 . . . . . . 1 . . Repair Station Hacks 14 | . . . . . . . . 2 . . . . . . . . . . . 8 . 2 . . 2 . . Scan Component 8 | . . . . . . . . 1 . . . . . . . . . . . 4 . 1 . . 2 . . Repair 6 | . . . . . . . . 1 . . . . . . . . . . . 4 . 1 . . . . . Recycling Unit Hacks 1 | . . . . . . . . . . . . . . . . 1 . . . . . . . . . . . Retrieve Matter 1 | . . . . . . . . . . . . . . . . 1 . . . . . . . . . . . Scanalyzer 2 | . . . . . . 2 . . . . . . . . . . . . . . . . . . . . . Insert Component 1 | . . . . . . 1 . . . . . . . . . . . . . . . . . . . . . Analyze 1 | . . . . . . 1 . . . . . . . . . . . . . . . . . . . . . Garrison Access Hacks 15 | . . . . 1 . 1 . 1 . 1 . . . . . 3 . 2 . 1 . 2 1 . 1 . 1 Unlock Access 11 | . . . . 1 . 1 . 1 . 1 . . . . . 2 . 2 . 1 . . 1 . 1 . . Seal Access 1 | . . . . . . . . . . . . . . . . . . . . . . 1 . . . . . Coupler Status 3 | . . . . . . . . . . . . . . . . 1 . . . . . 1 . . . . 1 Unauthorized Hacks 79 | . 6 . 3 2 . 1 . 3 . 2 . 9 . . 7 17 2 13 . 1 . 2 7 . 1 . 3 Terminals 65 | . 5 . 2 2 . 1 . 3 . 2 . 9 . . 7 12 2 10 . . . 1 7 . . . 2 Assimilate 3 | . . . . 1 . . . . . . . . . . . . . . . . . . 2 . . . . Botnet 38 | . 5 . 2 1 . 1 . 2 . 2 . 5 . . 2 6 1 5 . . . 1 3 . . . 2 Skim 20 | . . . . . . . . 1 . . . 4 . . 1 6 1 5 . . . . 2 . . . . Sabotage 4 | . . . . . . . . . . . . . . . 4 . . . . . . . . . . . . Fabricators . | . . . . . . . . . . . . . . . . . . . . . . . . . . . . Repair Stations 4 | . . . . . . . . . . . . . . . . 1 . 1 . 1 . 1 . . . . . Mechanics 4 | . . . . . . . . . . . . . . . . 1 . 1 . 1 . 1 . . . . . Recycling Units 3 | . 1 . 1 . . . . . . . . . . . . 1 . . . . . . . . . . . Recyclers 1 | . . . . . . . . . . . . . . . . 1 . . . . . . . . . . . Tunnel 2 | . 1 . 1 . . . . . . . . . . . . . . . . . . . . . . . . Scanalyzers . | . . . . . . . . . . . . . . . . . . . . . . . . . . . . Garrison Access 7 | . . . . . . . . . . . . . . . . 3 . 2 . . . . . . 1 . 1 Restock 1 | . . . . . . . . . . . . . . . . 1 . . . . . . . . . . . Reprogram 5 | . . . . . . . . . . . . . . . . 2 . 2 . . . . . . 1 . . Eject 1 | . . . . . . . . . . . . . . . . . . . . . . . . . . . 1 Data Cores Recovered . | . . . . . . . . . . . . . . . . . . . . . . . . . . . . Used . | . . . . . . . . . . . . . . . . . . . . . . . . . . . . Hacking Detections 86 | . 6 1 3 3 1 3 3 4 3 3 1 10 1 . 2 10 4 9 . 2 2 3 5 . 3 . 4 Full Trace Events 14 | . 2 . 1 . 1 1 . . . . . 4 . . . 1 . 2 . 1 . . . . 1 . . Feedback Events 1 | . . . . . 1 . . . . . . . . . . . . . . . . . . . . . . Corruption 1 | . . . . . 1 . . . . . . . . . . . . . . . . . . . . . . Feedback Blocked . | . . . . . . . . . . . . . . . . . . . . . . . . . . . . Robot Schematics Acquired 3 | . . . . . . . . . . . . . . . . 2 . 1 . . . . . . . . . Robots Built 7 | . . . . . . . . . . . . . . . . 2 . 3 . . . . . . 2 . . Authchips . | . . . . . . . . . . . . . . . . . . . . . . . . . . . . Time 292 | . . . . . . . . . . . . . . . . 76 . 142 . . . . . . 74 . . Total Robot Build Rating 43 | . . . . . . . . . . . . . . . . 10 . 15 . . . . . . 18 . . Part Schematics Acquired 2 | . . . . . . 1 . . . . . . . . . . . 1 . . . . . . . . . Parts Built 1 | . . . . . . . . . . . . . . . . . . 1 . . . . . . . . . Authchips . | . . . . . . . . . . . . . . . . . . . . . . . . . . . . Time 69 | . . . . . . . . . . . . . . . . . . 69 . . . . . . . . . Total Part Build Rating 9 | . . . . . . . . . . . . . . . . . . 9 . . . . . . . . . Parts Repaired 6 | . . . . . . . . 1 . . . . . . . . . . . 4 . 1 . . . . . Time 275 | . . . . . . . . 13 . . . . . . . . . . . 200 . 62 . . . . . Parts Recycled . | . . . . . . . . . . . . . . . . . . . . . . . . . . . . Recycled Matter . | . . . . . . . . . . . . . . . . . . . . . . . . . . . . Retrieved Matter . | . . . . . . . . . . . . . . . . . . . . . . . . . . . . Retrieved Components . | . . . . . . . . . . . . . . . . . . . . . . . . . . . . Parts Scanalyzed 1 | . . . . . . 1 . . . . . . . . . . . . . . . . . . . . . Part Schematics Acquired 1 | . . . . . . 1 . . . . . . . . . . . . . . . . . . . . . Parts Damaged . | . . . . . . . . . . . . . . . . . . . . . . . . . . . . Bothacking | -11 -10 -10 -9 -8 -8 -8 -8 -7 -7 -6 -6 -6 -6 -6 -6 -5 -5 -4 -4 -4 -4 -3 -2 -2 -2 -2 -1 ------------ Run | Yrd Mat Min Mat Mat Gar Mat Gar Fac Gar Fac Gar Ext Cet Arc Hub Fac Gar Fac Gar Fac Gar Res Res Gar Res Gar Acc Used RIF Installer 11 | . . . . . 1 . 2 . 1 . 2 . . . . . 1 . 1 . 1 . . 1 . 1 . Hotswap 1 | . . . . . . . . . 1 . . . . . . . . . . . . . . . . . . Code Merge 1 | . . . . . . . . . . . . . . . . . . . 1 . . . . . . . . Command Fork 2 | . . . . . . . . . . . 1 . . . . . . . . . . . . . . 1 . Zone Cloak 1 | . . . . . . . 1 . . . . . . . . . . . . . . . . . . . . Robot Detection 1 | . . . . . . . 1 . . . . . . . . . . . . . . . . . . . . Patrol Navigation 1 | . . . . . . . . . . . . . . . . . . . . . 1 . . . . . . Alert ID Control 1 | . . . . . . . . . . . . . . . . . 1 . . . . . . . . . . Program Shield 1 | . . . . . . . . . . . . . . . . . . . . . . . . 1 . . . Autoassimilate 1 | . . . . . . . . . . . 1 . . . . . . . . . . . . . . . . Robots Hacked 129 | . . . . . . 5 5 . 7 2 11 6 . . . . 15 7 17 6 9 10 . 19 5 5 . Non-combat 12 | . . . . . . . . . . . . 2 . . . . . 4 . 1 . 3 . 1 1 . . Combat 117 | . . . . . . 5 5 . 7 2 11 4 . . . . 15 3 17 5 9 7 . 18 4 5 . Autoassimilated 19 | . . . . . . . . . . . . . . . . . 3 2 2 . 1 2 . 4 . 5 . Robot Hacks Applied 119 | . . . . . . 5 6 . 7 2 11 13 . . . . 12 5 16 6 8 8 . 15 5 . . parse_system 3 | . . . . . . . 1 . . . . . . . . . . . . . . . . 1 1 . . no_distress 1 | . . . . . . . . . . . . 1 . . . . . . . . . . . . . . . ignore_repairs 2 | . . . . . . . . . . . . . . . . . . 1 . 1 . . . . . . . purge_threat 6 | . . . . . . . . . . . . 6 . . . . . . . . . . . . . . . locate_traps 1 | . . . . . . . . . . . . 1 . . . . . . . . . . . . . . . block_reporting 1 | . . . . . . . . . . . . . . . . . . 1 . . . . . . . . . spike_heat 2 | . . . . . . . . . . . . 1 . . . . 1 . . . . . . . . . . amplify_resonance 18 | . . . . . . . . . 4 . 2 . . . . . 2 . 2 . 4 3 . . 1 . . reboot_system 3 | . . . . . . 1 1 . . . . . . . . . . . . . 1 . . . . . . overwrite_iff 12 | . . . . . . . 2 . . . 2 1 . . . . 2 . 2 1 1 1 . . . . . formatsys_low 5 | . . . . . . . . . . . . 1 . . . . . 2 . . . 2 . . . . . formatsys_high 65 | . . . . . . 4 2 . 3 2 7 2 . . . . 7 1 12 4 2 2 . 14 3 . . Relay Couplers Released 124 | . . . . . 11 . 11 . 16 3 7 . . . 3 3 16 . 13 . 14 . . 20 . 4 3 Ejected 3 | . . . . . . . . . . . . . . . . . . . . . . . . . . . 3 Machine Destruction 115 | . . . . . 11 . 11 . 16 . 7 . . . 3 . 16 . 13 . 14 . . 20 . 4 . Programmers 6 | . . . . . . . . . . 3 . . . . . 3 . . . . . . . . . . . Attached 50 | . . . . . . 3 4 1 3 1 1 2 . . . 2 6 1 3 . 3 3 . 11 1 2 3 Merged Code Value 87 | . . . . . . . . . . . . . . . . . . . . . 45 . . 42 . . . Fabnet Peak Effective % . | . . . . . . . . . . . . . . . . . . . . . . . . . . . . Robots Rewired 30 | . . . . . . . . . 3 . . 9 . . . . . 1 . . 10 . . 3 . 4 . Allies Hacked 6 | . . . . . . . . . . . . . . . . . . 1 2 . . . . 3 . . . Hacks Repelled 1 | . . . . . . . . . . . . . . . . . . . 1 . . . . . . . . Allies | -11 -10 -10 -9 -8 -8 -8 -8 -7 -7 -6 -6 -6 -6 -6 -6 -5 -5 -4 -4 -4 -4 -3 -2 -2 -2 -2 -1 -------- Run | Yrd Mat Min Mat Mat Gar Mat Gar Fac Gar Fac Gar Ext Cet Arc Hub Fac Gar Fac Gar Fac Gar Res Res Gar Res Gar Acc Total Allies 178 | . . . . 1 . 4 6 . 7 2 10 22 . . . 2 16 15 21 6 15 7 1 28 6 9 . Largest Group 25 | . . . . 1 . 3 3 . 5 5 5 19 17 9 3 2 4 9 11 14 25 2 1 12 11 5 . Highest-Rated Group 1172 | . . . . 10 . 60 71 . 172 172 166 561 519 271 89 82 195 387 502 649 1172 109 26 627 630 380 . Highest-Rated Ally 148 | . . . . 10 . 29 31 . 40 40 47 85 47 39 32 41 51 56 116 49 58 64 26 80 69 148 . Total Orders 23 | . . . . . . . . . . . . . . . . . . 2 5 2 8 4 . 2 . . . STAY 5 | . . . . . . . . . . . . . . . . . . . 2 1 1 . . 1 . . . ROAM 1 | . . . . . . . . . . . . . . . . . . . . . 1 . . . . . . FOLLOW 10 | . . . . . . . . . . . . . . . . . . . 2 1 6 . . 1 . . . AID 4 | . . . . . . . . . . . . . . . . . . 2 1 . . 1 . . . . . EXPLORE 3 | . . . . . . . . . . . . . . . . . . . . . . 3 . . . . . Ally Attacks 1071 | . . . . . . 50 40 . 11 24 20 197 41 31 14 3 54 97 78 26 163 5 . 90 80 47 . Total Damage 26910 | . . . . . . 714 598 . 238 428 460 3829 914 565 279 83 1425 3910 2029 847 4361 121 . 2451 2561 1097 . Kills 159 | . . . . . . 8 3 . 4 6 2 24 4 4 1 . 5 24 10 4 30 . . 9 12 9 . Allies Corrupted 7 | . . . . . . . . . . . . . . . 1 . 1 1 . . . 2 . 1 . 1 . Allies Melted 2 | . . . . . . . . . . . . 1 . . . . . . . . 1 . . . . . . Intel | -11 -10 -10 -9 -8 -8 -8 -8 -7 -7 -6 -6 -6 -6 -6 -6 -5 -5 -4 -4 -4 -4 -3 -2 -2 -2 -2 -1 ------- Run | Yrd Mat Min Mat Mat Gar Mat Gar Fac Gar Fac Gar Ext Cet Arc Hub Fac Gar Fac Gar Fac Gar Res Res Gar Res Gar Acc Active Infowar (turns) 8686 | 5 482 397 263 391 . . . 772 5 252 . . . . 1 717 4 1159 660 352 1028 1105 127 246 251 107 362 Sensors 1075 | . . . . . . . . . . . . . . . . 709 4 . . . . . . . . . 362 Terrain 358 | . . . . . . . . . . . . . . . . . . . . . . . . . 251 107 . Structural 3786 | . . . 222 391 . . . 772 5 252 . . . . . 530 . 1159 2 . . 80 127 246 . . . Traps 3 | . . . . . . . . 2 . . . . . . 1 . . . . . . . . . . . . Seismic 1240 | 5 482 397 41 . . . . . . . . . . . . . . . . . . 315 . . . . . Jamming 3473 | . . . . . . . . . . . . . . . . . . 547 660 352 1028 886 . . . . . Robot Analysis Total 11 | . 3 . . . . . . 1 . . . . . . . 7 . . . . . . . . . . . Derelict Logs Recovered 1 | . . 1 . . . . . . . . . . . . . . . . . . . . . . . . . Drone Launches 19 | . . . . . . . . . . . . . . . . . . . . . . 16 . . 3 . . Drone Recoveries . | . . . . . . . . . . . . . . . . . . . . . . . . . . . . Exploration | -11 -10 -10 -9 -8 -8 -8 -8 -7 -7 -6 -6 -6 -6 -6 -6 -5 -5 -4 -4 -4 -4 -3 -2 -2 -2 -2 -1 ------------- Run | Yrd Mat Min Mat Mat Gar Mat Gar Fac Gar Fac Gar Ext Cet Arc Hub Fac Gar Fac Gar Fac Gar Res Res Gar Res Gar Acc Turns Passed 20963 | 65 482 408 499 560 864 543 1219 1010 1898 627 624 876 425 178 507 862 1940 1286 660 352 1344 1598 347 539 421 186 643 Spaces Moved 13207 | 36 325 284 239 233 455 253 550 543 799 324 282 382 145 92 196 1165 981 725 291 76 621 815 691 715 656 230 1103 Core 249 | 1 . . . . 1 . . . . . . . . . 22 7 . . . . . 54 . . . . 164 Treads 7139 | . . . 176 191 358 253 550 543 799 324 282 382 145 92 174 . 512 725 291 76 621 642 . . . . 3 Legs 1065 | 35 325 110 . 3 36 . . . . . . . . . . 87 469 . . . . . . . . . . Wheels 99 | . . . . 39 60 . . . . . . . . . . . . . . . . . . . . . . Hover 1520 | . . 174 63 . . . . . . . . . . . . 1071 . . . . . . . . . . 212 Flight 3135 | . . . . . . . . . . . . . . . . . . . . . . 119 691 715 656 230 724 Fastest Speed 29 | 50 120 80 80 125 110 160 162 159 152 160 160 155 235 160 50 40 120 150 145 150 145 37 37 39 33 29 31 Average Speed 115 | 118 120 95 138 158 159 166 162 160 197 160 160 157 247 171 171 50 138 150 151 150 147 127 38 39 36 32 45 Slowest Speed 450 | 120 120 120 160 400 450 240 243 162 239 160 160 160 320 240 240 120 265 150 152 152 225 250 39 39 39 109 180 Overloaded Moves 16 | . . . . . . . . . . . . . . . . . . . . . . . . . . . 16 Propulsion Burnouts . | . . . . . . . . . . . . . . . . . . . . . . . . . . . . Robots Hopped 17 | . . . . . . . . . . . . . . . . . . . . . . 1 2 3 7 3 1 Potential Cave-ins 5 | . . . . . . . . . . . . . . . . . . . . . . 5 . . . . . Cave-ins Triggered . | . . . . . . . . . . . . . . . . . . . . . . . . . . . . Exploration Rate (%) 42 | 3 62 61 28 27 60 30 78 17 76 17 54 73 67 75 25 32 88 16 40 2 76 21 14 61 12 33 37 Regions Visited 27 Branch Regions 5 Pre-discovered Areas 4 | . 1 . 1 . . . . . . . . . . . . 1 . 1 . . . . . . . . . Known Exits Taken 11 | . 1 . 1 1 . 1 . 1 . 1 . . . . . 1 . 1 . 1 . . 1 . 1 . . Unknown Exits Taken 7 | 1 . 1 . . . . . . . . . 1 1 1 1 . . . . . . 1 . . . . . Scrap Searched 2 | . . 2 . . . . . . . . . . . . . . . . . . . . . . . . . Spaces Dug 114 | . . . 2 7 3 . 5 5 2 3 . . . . 4 8 7 8 2 1 3 13 13 6 4 4 14 Terrain Destroyed 492 | . . . 11 42 52 . 5 6 2 8 1 5 . . 4 8 17 9 2 1 84 116 13 6 22 4 74 Melee 100 | . . . 2 6 3 . 5 5 2 3 . . . . 4 8 6 8 2 1 3 2 13 6 4 4 13 Projectile 61 | . . . . 3 . . . 1 . 5 1 5 . . . . 11 1 . . 2 29 . . . . 3 AOE 331 | . . . 9 33 49 . . . . . . . . . . . . . . . 79 85 . . 18 . 58 Terrain Rammed . | . . . . . . . . . . . . . . . . . . . . . . . . . . . . Walls Destroyed . | . . . . . . . . . . . . . . . . . . . . . . . . . . . . Machines Disabled . | . . . . . . . . . . . . . . . . . . . . . . . . . . . . Actions | -11 -10 -10 -9 -8 -8 -8 -8 -7 -7 -6 -6 -6 -6 -6 -6 -5 -5 -4 -4 -4 -4 -3 -2 -2 -2 -2 -1 --------- Run | Yrd Mat Min Mat Mat Gar Mat Gar Fac Gar Fac Gar Ext Cet Arc Hub Fac Gar Fac Gar Fac Gar Res Res Gar Res Gar Acc Total 16993 | 47 372 408 325 342 537 317 718 625 999 383 386 587 199 108 294 1346 1366 872 458 276 921 1189 739 900 801 287 1191 Wait 1219 | . 8 85 6 21 4 1 12 20 26 3 19 43 32 4 21 68 115 82 60 155 82 157 13 75 104 . 3 Move 13150 | 35 324 283 238 233 454 253 549 542 798 324 281 381 144 91 195 1164 980 724 290 75 620 812 687 708 641 223 1101 Hop 17 | . . . . . . . . . . . . . . . . . . . . . . 1 2 3 7 3 1 Pick Up 171 | 2 5 2 3 3 10 3 7 3 19 5 4 . 5 8 2 9 26 4 11 2 13 6 4 5 3 3 4 Fast Attach 252 | 6 3 7 13 13 16 1 6 8 7 2 . 1 4 2 6 25 26 5 . 1 10 24 10 16 7 9 24 Attach 115 | . . 2 2 8 2 4 5 2 2 4 2 9 1 . 3 2 16 3 3 . 6 20 2 3 2 4 8 Detach 53 | . 1 4 1 5 2 . 3 . 3 1 . . 1 . 1 1 9 . . . 6 9 1 1 . . 4 Swap 167 | . 2 . 4 5 3 9 24 9 9 12 3 5 3 1 11 9 14 6 12 3 7 8 . 3 4 . 1 Drop 168 | . 5 4 7 5 10 7 10 9 17 4 . 1 1 . 10 13 9 2 6 . 15 9 3 6 5 . 10 Fire 618 | 4 24 10 15 34 27 26 53 15 17 22 26 39 8 . 12 . 63 8 30 6 26 111 . 21 12 . 9 Melee 720 | . . . 35 15 9 10 45 17 72 4 32 42 . 2 29 55 94 22 23 2 62 25 17 40 15 30 23 Ram . | . . . . . . . . . . . . . . . . . . . . . . . . . . . . Kick 17 | . . 11 . . . . . . . . . . . . . . 6 . . . . . . . . . . Crush 20 | . . . 1 . . 1 . . . . . 6 . . 4 . . . . . . 5 . . . . 3 Escape Stasis 13 | . . . . . . . . . 6 . . . . . . . . . . . . . . 7 . . . Rewire 201 | . . . . . . 2 1 . 23 2 2 60 . . . . 8 4 3 1 65 2 . 12 1 15 . Trap 40 | . . . . . . . 3 . . . 17 . . . . . . . 20 . . . . . . . . Miscellaneous 52 | . . . . . . . . . . . . . . . . . . 12 . 31 9 . . . . . . Route ------- -11/Scrapyard -10/Materials (discovered 3 exits: *Mat x2 / *Min) -10/Mines -9/Materials (discovered 2 exits: *Mat x2) -8/Materials -8/Garrison (discovered 3 exits: *Mat x3) -8/Materials (discovered 2 exits: *Fac / Gar) -8/Garrison (discovered 3 exits: *Fac x3) -7/Factory (discovered 2 exits: [*Low] / Gar) -7/Garrison (discovered 2 exits: *Fac x2) -6/Factory -6/Garrison (discovered 3 exits: *Ext x3) -6/Extension (discovered 2 exits: *Fac / *Cet) -6/Cetus -6/Archives (discovered 2 exits: *Fac / *Hub) -6/Hub_04(d) -5/Factory (discovered 4 exits: *Fac x2 / [*Upp] / Gar) -5/Garrison (discovered 3 exits: *Fac x3) -4/Factory (discovered 7 exits: *Res x4 / Upp / Gar / Gar) -4/Garrison (discovered 4 exits: *Res x3 / *Fac) -4/Factory -4/Garrison (discovered 3 exits: *Res x3) -3/Research (discovered 3 exits: *Res / Arm / Qua) -2/Research (discovered 2 exits: *Acc / Gar) -2/Garrison (discovered 3 exits: *Res x3) -2/Research (discovered 3 exits: [*Tes x2] / Gar) -2/Garrison -1/Access History --------- Turn | Location | Event 7 | -11/Scrapyard | Discovered new exit (range 15) 66 | -11/Scrapyard | Entered Materials 263 | -10/Materials | Discovered new exit (range 16) 300 | -10/Materials | Build established: Mutant 474 | -10/Materials | Identified exit to Mines 488 | -10/Materials | Discovered new exit (range 15) 489 | -10/Materials | Core integrity fell below 50% 548 | -10/Materials | Entered Mines 558 | -10/Mines | Assembled infested the area 736 | -10/Mines | Learned 2 Materials zone layouts 922 | -10/Mines | Discovered new exit (range 15) 931 | -10/Mines | Found the Drone Emporium 935 | -10/Mines | Found Prototype Device 935 | -10/Mines | Identified Decoy Drone Bay 956 | -10/Mines | Entered Materials 956 | -9/Materials | Evolved 2 slots: Propulsion x1, Utility x1 957 | -9/Materials | Identified exit to Materials 1130 | -9/Materials | System corruption reached 10% 1258 | -9/Materials | Lost 3 parts (1p1u1w) 1455 | -9/Materials | Entered another Materials area 1455 | -8/Materials | Evolved 2 slots: Propulsion x1, Utility x1 1732 | -8/Materials | Build established: Scavenger-Mutant 1907 | -8/Materials | Garrison activated, responded to threat 1967 | -8/Materials | Lost 10 parts (1p4n2u3w) 2015 | -8/Materials | Identified exit to Garrison 2015 | -8/Materials | Entered Garrison 2075 | -8/Garrison | Phase Generator disabled 2089 | -8/Garrison | Triggered checkpoint 2094 | -8/Garrison | Triggered checkpoint 2111 | -8/Garrison | Triggered checkpoint 2131 | -8/Garrison | Core integrity fell below 50% 2164 | -8/Garrison | Lost 3 parts (2n1w) 2199 | -8/Garrison | Triggered checkpoint 2357 | -8/Garrison | Garrison Relay disabled 2369 | -8/Garrison | Garrison Relay disabled 2515 | -8/Garrison | Found Hvy. Reactive Plating 2531 | -8/Garrison | Found Hvy. Reactive Plating 2574 | -8/Garrison | Spotted B-75 Beast 2650 | -8/Garrison | Discovered new exit (range 8) 2682 | -8/Garrison | Installed Relay Interface Framework 2711 | -8/Garrison | Triggered checkpoint 2771 | -8/Garrison | Garrison Relay disabled 2813 | -8/Garrison | Discovered new exit (range 84) 2813 | -8/Garrison | Discovered new exit (range 49) 2813 | -8/Garrison | Discovered new exit (range 36) 2879 | -8/Garrison | Entered Materials 3223 | -8/Materials | Discovered new exit (range 8) 3299 | -8/Materials | Garrison activated, responded to threat 3393 | -8/Materials | Destroyed 8 combat bots 3422 | -8/Materials | Identified exit to Garrison 3422 | -8/Materials | Entered Garrison 3645 | -8/Garrison | Expanded RIF knowledge: Zone Cloak 3714 | -8/Garrison | Triggered checkpoint 3783 | -8/Garrison | Garrison Relay disabled 3799 | -8/Garrison | Rescued a captive Derelict 3799 | -8/Garrison | Rescued a captive Derelict 3906 | -8/Garrison | Triggered checkpoint 3908 | -8/Garrison | Triggered checkpoint 3966 | -8/Garrison | Triggered checkpoint 4197 | -8/Garrison | Discovered new exit (range 14) 4202 | -8/Garrison | Discovered new exit (range 65) 4202 | -8/Garrison | Discovered new exit (range 17) 4202 | -8/Garrison | Discovered new exit (range 87) 4224 | -8/Garrison | Triggered checkpoint 4233 | -8/Garrison | Garrison Relay disabled 4441 | -8/Garrison | Core integrity fell below 20% 4532 | -8/Garrison | Expanded RIF knowledge: Robot Detection 4550 | -8/Garrison | Triggered checkpoint 4574 | -8/Garrison | Garrison Relay disabled 4641 | -8/Garrison | Entered Factory 4641 | -7/Factory | Evolved 2 slots: Propulsion x1, Utility x1 4902 | -7/Factory | Build established: Bothacker-Mutant 5086 | -7/Factory | Repaired Lgt. Treads 5381 | -7/Factory | Garrison activated, responded to threat 5445 | -7/Factory | Identified exit to Garrison 5580 | -7/Factory | Discovered new exit (range 5) 5651 | -7/Factory | Entered Garrison 5695 | -7/Garrison | Triggered checkpoint 5813 | -7/Garrison | Garrison Relay disabled 5900 | -7/Garrison | Rescued a captive Derelict 6141 | -7/Garrison | Triggered checkpoint 6163 | -7/Garrison | Triggered checkpoint 6165 | -7/Garrison | Triggered checkpoint 6303 | -7/Garrison | Garrison Relay disabled 6423 | -7/Garrison | Discovered new exit (range 12) 6693 | -7/Garrison | Garrison Relay disabled 6978 | -7/Garrison | Discovered new exit (range 10) 7159 | -7/Garrison | Triggered checkpoint 7193 | -7/Garrison | Triggered checkpoint 7240 | -7/Garrison | Expanded RIF knowledge: Hotswap 7280 | -7/Garrison | Triggered checkpoint 7344 | -7/Garrison | Garrison Relay disabled 7543 | -7/Garrison | Build established: Botlord-Mutant 7549 | -7/Garrison | Entered Factory 7549 | -6/Factory | Accompanied by 5 allies 7549 | -6/Factory | Evolved 2 slots: Propulsion x1, Utility x1 7786 | -6/Factory | Lost 3 allies 7870 | -6/Factory | System corruption reached 10% 8176 | -6/Factory | Identified exit to Garrison 8176 | -6/Factory | Entered Garrison 8176 | -6/Garrison | Accompanied by 2 allies 8194 | -6/Garrison | Discovered new exit (range 51) 8194 | -6/Garrison | Discovered new exit (range 54) 8194 | -6/Garrison | Discovered new exit (range 44) 8243 | -6/Garrison | Lost 3 allies 8306 | -6/Garrison | Triggered checkpoint 8356 | -6/Garrison | Triggered checkpoint 8387 | -6/Garrison | Expanded RIF knowledge: Command Fork 8418 | -6/Garrison | Garrison Relay disabled 8490 | -6/Garrison | Triggered checkpoint 8604 | -6/Garrison | Expanded RIF knowledge: Autoassimilate 8666 | -6/Garrison | Triggered checkpoint 8720 | -6/Garrison | Garrison Relay disabled 8800 | -6/Garrison | Entered Extension 8800 | -6/Extension | Accompanied by 5 allies 8866 | -6/Extension | Rescued a captive Derelict 9127 | -6/Extension | Rescued a captive Derelict 9128 | -6/Extension | Rescued a captive Derelict 9146 | -6/Extension | Rescued a captive Derelict 9184 | -6/Extension | Spotted B-75 Beast 9194 | -6/Extension | Spotted B-75 Beast 9226 | -6/Extension | Lost 4 parts (2n2w) 9227 | -6/Extension | Allies destroyed B-75 Beast 9229 | -6/Extension | Allies destroyed B-75 Beast 9308 | -6/Extension | Rescued a captive Derelict 9418 | -6/Extension | Rescued a captive Derelict 9432 | -6/Extension | Rescued a captive Derelict 9534 | -6/Extension | Rescued a captive Derelict 9568 | -6/Extension | Lost 4 allies 9617 | -6/Extension | Discovered new exit (range 10) 9619 | -6/Extension | Discovered new exit (range 6) 9676 | -6/Extension | Entered Cetus 9676 | -6/Cetus | Accompanied by 17 allies 9711 | -6/Cetus | Spotted Cetus Guard 9711 | -6/Cetus | Spotted Cetus Guard 9717 | -6/Cetus | Spotted Cetus Guard 9717 | -6/Cetus | Spotted Cetus Guard 9719 | -6/Cetus | Allies destroyed Cetus Guard 9731 | -6/Cetus | Allies destroyed Cetus Guard 9741 | -6/Cetus | Destroyed Cetus Guard 9746 | -6/Cetus | Allies destroyed Cetus Guard 9768 | -6/Cetus | Lost 4 parts (1p2n1w) 9770 | -6/Cetus | Lost 8 allies 10027 | -6/Cetus | Build established: Bothacker-Mutant 10051 | -6/Cetus | Discovered new exit (range 15) 10101 | -6/Cetus | Entered Archives 10101 | -6/Archives | Accompanied by 9 allies 10161 | -6/Archives | Lost 6 allies 10167 | -6/Archives | Discovered new exit (range 13) 10237 | -6/Archives | Discovered new exit (range 16) 10279 | -6/Archives | Entered Hub_04(d) 10279 | -6/Hub_04(d) | Accompanied by 3 allies 10439 | -6/Hub_04(d) | Core integrity fell below 50% 10559 | -6/Hub_04(d) | Discovered new exit (range 11) 10682 | -6/Hub_04(d) | Network Hub disabled 10696 | -6/Hub_04(d) | Network Hub disabled 10707 | -6/Hub_04(d) | Spotted Lightning 10709 | -6/Hub_04(d) | Spotted Lightning 10711 | -6/Hub_04(d) | Spotted Lightning 10711 | -6/Hub_04(d) | Network Hub disabled 10771 | -6/Hub_04(d) | Core integrity fell below 20% 10786 | -6/Hub_04(d) | Entered Factory 10786 | -5/Factory | Evolved 2 slots: Utility x2 10794 | -5/Factory | Lost 7 parts (4n2u1w) 10875 | -5/Factory | Discovered new exit (range 9) 10957 | -5/Factory | Identified exit to Factory 11028 | -5/Factory | Discovered new exit (range 16) 11052 | -5/Factory | Discovered exit to Factory (range 9) 11182 | -5/Factory | Build established: Hacker-Scout 11208 | -5/Factory | Central database locked down 11216 | -5/Factory | Loaded intel: 81 trap records 11234 | -5/Factory | Identified exit to Garrison 11288 | -5/Factory | Learned Armory stockpile data 11334 | -5/Factory | Lost 3 parts (2n1u) 11351 | -5/Factory | Learned Quarantine emergency access door positions 11403 | -5/Factory | Learned location of Testing (-2) 11414 | -5/Factory | Identified exit to Garrison 11424 | -5/Factory | Fabricated H-66 Slayer? 11443 | -5/Factory | Learned location of 1 exit from Proximity Caves 11492 | -5/Factory | Learned location of 1 exit from Quarantine 11552 | -5/Factory | Learned Testing terminal intel 11552 | -5/Factory | System corruption reached 10% 11648 | -5/Factory | Entered Garrison 11743 | -5/Garrison | Build established: Hacker-Mutant 11788 | -5/Garrison | Triggered checkpoint 11926 | -5/Garrison | Lost 12 parts (1p6n2u3w) 11962 | -5/Garrison | Garrison Relay disabled 12028 | -5/Garrison | Triggered checkpoint 12084 | -5/Garrison | Triggered checkpoint 12102 | -5/Garrison | Garrison Relay disabled 12282 | -5/Garrison | System corruption reached 30% 12301 | -5/Garrison | Core integrity fell below 50% 12343 | -5/Garrison | Lost 7 parts (1p2n3u1w) 12408 | -5/Garrison | Build established: Botlord-Mutant 12595 | -5/Garrison | Core integrity fell below 20% 12625 | -5/Garrison | Lost 8 parts (1p6n1w) 12800 | -5/Garrison | Triggered checkpoint 12850 | -5/Garrison | Discovered exit to Factory (range 12) 12864 | -5/Garrison | Triggered checkpoint 12969 | -5/Garrison | Lost 3 allies 12973 | -5/Garrison | Garrison Relay disabled 13132 | -5/Garrison | Triggered checkpoint 13231 | -5/Garrison | Rescued a captive Derelict 13231 | -5/Garrison | Rescued a captive Derelict 13246 | -5/Garrison | Triggered checkpoint 13260 | -5/Garrison | Garrison Relay disabled 13310 | -5/Garrison | Discovered exit to Factory (range 13) 13339 | -5/Garrison | Learned Factory security intel 13502 | -5/Garrison | Discovered exit to Factory (range 13) 13536 | -5/Garrison | Expanded RIF knowledge: Alert ID Control 13588 | -5/Garrison | Entered Factory 13588 | -4/Factory | Accompanied by 4 allies 13588 | -4/Factory | Evolved 2 slots: Utility x2 13600 | -4/Factory | Identified exit to Garrison 14457 | -4/Factory | Discovered new exit (range 15) 14526 | -4/Factory | Identified exit to Garrison 14655 | -4/Factory | Learned Research scanalyzer intel 14689 | -4/Factory | Fabricated Adv. Heavy Siege Treads? 14703 | -4/Factory | Learned 8 Research zone layouts 14720 | -4/Factory | Fabricated M-28 Smith? 14741 | -4/Factory | Learned 8 Research zone layouts 14768 | -4/Factory | Identified exit to Research 14793 | -4/Factory | Lost 4 allies 14795 | -4/Factory | Identified exit to Upper Caves 14817 | -4/Factory | Fabricated P-70 Sage (x2) 14822 | -4/Factory | Learned Quarantine trap positions 14874 | -4/Factory | Entered Garrison 14874 | -4/Garrison | Accompanied by 7 allies 14918 | -4/Garrison | Triggered checkpoint 14945 | -4/Garrison | Garrison Relay disabled 14968 | -4/Garrison | Garrison Relay disabled 15050 | -4/Garrison | P-70 Sage assimilated allied Veteran 7e 15089 | -4/Garrison | Lost 6 allies 15093 | -4/Garrison | Discovered exit to Research (range 63) 15093 | -4/Garrison | Discovered exit to Research (range 44) 15093 | -4/Garrison | Discovered exit to Research (range 38) 15093 | -4/Garrison | Discovered new exit (range 58) 15135 | -4/Garrison | Spotted B-86 Titan 15144 | -4/Garrison | Triggered checkpoint 15146 | -4/Garrison | Triggered checkpoint 15147 | -4/Garrison | P-70 Sage assimilated allied G-67 Veteran 15152 | -4/Garrison | Assimilated Titan 7a with formatsys_high 15160 | -4/Garrison | Triggered checkpoint 15174 | -4/Garrison | Triggered checkpoint 15214 | -4/Garrison | Lost 7 allies 15254 | -4/Garrison | Triggered checkpoint 15364 | -4/Garrison | Expanded RIF knowledge: Code Merge 15442 | -4/Garrison | Garrison Relay disabled 15462 | -4/Garrison | Triggered checkpoint 15534 | -4/Garrison | Entered Factory 15534 | -4/Factory | Accompanied by 11 allies 15622 | -4/Factory | Repaired Biometal Heavy Treads 15677 | -4/Factory | Repaired Imp. Medium Armor Plating 15722 | -4/Factory | Repaired Imp. Medium Armor Plating 15761 | -4/Factory | Repaired Axe 15798 | -4/Factory | Identified exit to Garrison 15886 | -4/Factory | Entered Garrison 15886 | -4/Garrison | Accompanied by 14 allies 15939 | -4/Garrison | Phase Generator disabled 16234 | -4/Garrison | Triggered checkpoint 16243 | -4/Garrison | Garrison Relay disabled 16279 | -4/Garrison | Triggered checkpoint 16310 | -4/Garrison | Garrison Relay disabled 16474 | -4/Garrison | Triggered checkpoint 16474 | -4/Garrison | Spotted B-86 Titan 16528 | -4/Garrison | Triggered checkpoint 16554 | -4/Garrison | Triggered checkpoint 16575 | -4/Garrison | Lost 6 allies 16576 | -4/Garrison | Triggered checkpoint 16626 | -4/Garrison | Triggered checkpoint 16647 | -4/Garrison | Discovered exit to Research (range 54) 16647 | -4/Garrison | Discovered exit to Research (range 30) 16647 | -4/Garrison | Discovered exit to Research (range 29) 16706 | -4/Garrison | Lost 13 allies 16752 | -4/Garrison | Triggered checkpoint 16835 | -4/Garrison | Garrison Relay disabled 16848 | -4/Garrison | Triggered checkpoint 16880 | -4/Garrison | Lost 3 parts (1p2u) 16917 | -4/Garrison | Expanded RIF knowledge: Patrol Navigation 17158 | -4/Garrison | Garrison Relay disabled 17230 | -4/Garrison | Entered Research 17230 | -3/Research | Evolved 2 slots: Power x1, Utility x1 17231 | -3/Research | Identified exit to Armory 17232 | -3/Research | Identified exit to Quarantine 17233 | -3/Research | Loaded intel: 6 scanalyzer locations 17480 | -3/Research | Repaired Adv. Transmission Jammer 17628 | -3/Research | Discovered new exit (range 11) 17739 | -3/Research | Lost 3 allies 18129 | -3/Research | Cargo convoy interrupted 18226 | -3/Research | Destroyed 12 combat bots 18431 | -3/Research | Lost 9 parts (2p4n1u2w) 18484 | -3/Research | Lost 3 parts (1n1u1w) 18613 | -3/Research | Lost 12 parts (2p3n5u2w) 18633 | -3/Research | Spotted B-86 Titan 18674 | -3/Research | Lost 5 allies 18701 | -3/Research | System corruption reached 10% 18712 | -3/Research | Core integrity fell below 50% 18756 | -3/Research | Lost 10 parts (3n5u2w) 18820 | -3/Research | Core integrity fell below 20% 18828 | -3/Research | Entered another Research area 18828 | -2/Research | Evolved 2 slots: Utility x2 18943 | -2/Research | Spotted B-90 Cyclops 19012 | -2/Research | Build established: Mutant 19171 | -2/Research | Discovered new exit (range 13) 19175 | -2/Research | Identified exit to Garrison 19175 | -2/Research | Entered Garrison 19175 | -2/Garrison | Accompanied by 1 ally 19189 | -2/Garrison | Garrison Relay disabled 19198 | -2/Garrison | Found embedded Infiltrators 19205 | -2/Garrison | Triggered checkpoint 19253 | -2/Garrison | Spotted B-90 Cyclops 19253 | -2/Garrison | Spotted B-90 Cyclops 19257 | -2/Garrison | Triggered checkpoint 19259 | -2/Garrison | Triggered checkpoint 19265 | -2/Garrison | Triggered checkpoint 19269 | -2/Garrison | Garrison Relay disabled 19304 | -2/Garrison | Garrison Relay disabled 19346 | -2/Garrison | Lost 8 allies 19368 | -2/Garrison | Discovered new exit (range 7) 19377 | -2/Garrison | Triggered checkpoint 19399 | -2/Garrison | Garrison Relay disabled 19414 | -2/Garrison | Triggered checkpoint 19430 | -2/Garrison | Discovered new exit (range 10) 19439 | -2/Garrison | Triggered checkpoint 19453 | -2/Garrison | Garrison Relay disabled 19458 | -2/Garrison | Triggered checkpoint 19477 | -2/Garrison | Discovered new exit (range 67) 19477 | -2/Garrison | Discovered new exit (range 13) 19477 | -2/Garrison | Discovered new exit (range 67) 19486 | -2/Garrison | Expanded RIF knowledge: Program Shield 19490 | -2/Garrison | Build established: Botlord-Mutant 19540 | -2/Garrison | Rescued a captive Derelict 19543 | -2/Garrison | Rescued a captive Derelict 19642 | -2/Garrison | P-80 Master assimilated allied UK-5SI(g) 19714 | -2/Garrison | Entered Research 19714 | -2/Research | Accompanied by 9 allies 19852 | -2/Research | Fabricated H-88 Terminator (x2) 20013 | -2/Research | Garrison activated, responded to threat 20046 | -2/Research | Identified exit to Garrison 20086 | -2/Research | Discovered new exit (range 5) 20087 | -2/Research | Lost 11 allies 20096 | -2/Research | Discovered new exit (range 5) 20135 | -2/Research | Entered Garrison 20135 | -2/Garrison | Accompanied by 1 ally 20156 | -2/Garrison | Expanded RIF knowledge: Command Fork 20188 | -2/Garrison | Spotted B-90 Cyclops 20191 | -2/Garrison | Autoassimilated Cyclops 9a with RIF 20193 | -2/Garrison | Triggered checkpoint 20193 | -2/Garrison | Triggered checkpoint 20221 | -2/Garrison | Triggered checkpoint 20224 | -2/Garrison | Garrison Relay disabled 20242 | -2/Garrison | Lost 3 parts (2n1u) 20245 | -2/Garrison | Lost 8 allies 20256 | -2/Garrison | System corruption reached 10% 20307 | -2/Garrison | Core integrity fell below 50% 20314 | -2/Garrison | Discovered new exit (range 15) 20321 | -2/Garrison | Entered Access 20321 | -1/Access | Evolved 2 slots: Propulsion x2 20338 | -1/Access | Lost 12 parts (2p6n4u) 20428 | -1/Access | Lost 6 parts (3n2u1w) 20755 | -1/Access | Spotted B-99 Colossus 20773 | -1/Access | Core integrity fell below 50% 20813 | -1/Access | Lost 15 parts (2p3n8u2w) 20829 | -1/Access | System corruption reached 10% 20846 | -1/Access | Core integrity fell below 20% 20957 | -1/Access | Spotted B-99 Colossus 20958 | -1/Access | Spotted B-99 Colossus 20958 | -1/Access | Spotted B-99 Colossus 20964 | -1/Access | Destroyed by B-99 Colossus with Multirail Last Messages --------------- 20936_ K-01 Serf destroyed. 20954_ Slug penetrates Terminal. 20954_ Terminal disabled. 20959_ Penetrated by Slug. 20959_ Adv. Sensor Array destroyed. 20959_ Penetrated by Slug. 20959_ Imp. Heavy Siege Treads destroyed. 20959_ Slug penetrates Wall. 20960_ JQ&NUD%F4SP96WMFI9R SEHDKDK 6GOL% 20960_ Acquired 3 matter. 20961_ Slug penetrates S-43 Plague. 20961_ Penetrated by Slug. 20961_ Slug penetrates Wall. 20962_ Imp. Heavy Siege Treads destroyed. 20963_ Slug penetrates S-43 Plague. 20963_ S-43 Plague destroyed. 20963_ Slug penetrates Wall. 20964_ Penetrated by Slug. 20964_ Slug penetrates Wall. 20964_ Penetrated by Slug. Map ----- +----------------------------------------------------+ | #????????????????????????????????????????????????? | | #????????????????????????????????????????????????? | | #????????????????????????????????????????????????? | | ########+#####???????????????h???????????????????? | | ??????????????????????????????????? | | ??????????????????????????????????? | | ??????????????????????????????????? | | ??????????????????????????????????? | | ########## #??? ????????????????????????? | | #????????? #? #???????????????????????? | | #????????? ## #???????????????????????? | | #????????# ## #???????????????????????? | | #????????# ## #???????????????????????? | | #/########## ## #???????????????????????? | | # ## #???????????????????????? | | # ## #???????????????????????? | | !!= # ##! #???????????????????????? | | !!= # ## #???????????????????????? | | !! # ## #???????????????????????? | | # ## #???????????????????????? | | # ## #???????????????????????? | | / ## #########???????????????? | | """T"" " # ## # "???????????????? | | """"""""" # ## # BB "???????????????? | | ############ #####+###; BB "???????????????? | | ????# [s%ss*% @ "???????????????? | | ????# [! s % "???????????????? | | ????# ^ "???????????????? | | ????# BB "???????????????? | | ????# ### % ### BB "???????????????? | | ????# ??# #?? "???????????????? | | ????# ???# #?? "???????????????? | | ??? ????# #??########???????????????? | | ? ?????#"" #?????????????????????????? | | ? ?????#"" #?????????????????????????? | | ?? ??????#"" #?????????????????????????? | | ???????????#T #?????????????????????????? | | ????????????"" ?????????????????????????? | | ????????????"" ????????????????????????? | | ?????????????" ###???????????????????????? | | ????????????? #?????????????????????????? | | ????????????? ???????????????????????????? | | ?????????????? ?????????????????????????????? | | ?????????????????????????????????????????????????? | | ?????????????????????????????????????????????????? | | ?????????????????????????????????????????????????? | | ?????????????????????????????????????????????????? | | ?????????????????????????????????????????????????? | | ?????????????????????????????????????????????????? | | ?????????????????????????????????????????????????? | +----------------------------------------------------+ Best States ------------- Heat Dissipation 87 Coolant Potential 100 Energy Generation 43 Energy Capacity 430 Matter Stores 300 Matter Capacity 300 Sight Range 16 Robot Scan Range 16 Terrain Scan Range 14 Terrain Scan Density 210 Jamming Range 16 Additional Mass Support 12 Armor Coverage 1350 Resistance: KI 40 Resistance: TH 20 Propulsion Shielding 33 Utility Shielding 66 Phase Shifting 10 Evasion (%) 74 Melee Accuracy 6 Target Analysis 8 Core Analysis 6 Recoil Reduction 8 Energy Filtering 50 Offensive Hacking 26 Defensive Hacking 12 Relay Coupler Types 7 Relay Coupler Value 249 Item Schematics ----------------- Hvy. Reactive Plating | -8/Materials | Scanalyzed Adv. Heavy Siege Treads | -4/Factory | Hacked Robot Schematics ------------------ M-28 Smith | -5/Factory | Hacked H-66 Slayer | -5/Factory | Hacked P-70 Sage | -4/Factory | Hacked Fabricated ------------ H-66 Slayer | x2 | -5/Factory Adv. Heavy Siege Treads | x1 | -4/Factory | Preloaded M-28 Smith | x1 | -4/Factory P-70 Sage | x2 | -4/Factory H-88 Terminator | x2 | -2/Research | Preloaded Repaired ---------- Lgt. Treads | 8% | -7/Factory Biometal Heavy Treads | 39% | -4/Factory Imp. Medium Armor Plating | 15% | -4/Factory Imp. Medium Armor Plating | 18% | -4/Factory Axe | 18% | -4/Factory Adv. Transmission Jammer | 36% | -3/Research Alien Tech Used ----------------- None Achievements -------------- None Challenges ------------ None Game ------ Seed MakeshiftCentriumKit Manual? 0 Play Time 05:16:04 Cumulative 264.8 hours Start 2025.06.19 @ 19:46:57 End 2025.06.20 @ 17:20:28 Sessions 5 Manual Loads 0 Difficulty Rogue Special Mode None Game No. 130 Rogue 130 Adventurer 0 Explorer 0 Win Type - Total 16 Types 6/0/5/1/3/1/0/0/0/0 Lore% 83 Gallery% 71 Achievement% 67 Wizard Run 0 Options --------- Layout 1 ASCII 0 Keyboard 0 Movement Numpad Keybinds 0 Fullscreen 1 Font 24/Smallcaps Map View 50x35 Zoom Use 0% Tactical HUD 1 Map Filters NONE Filters NONE Steam 1 RUN: f45ff82f-37a9-4267-b288-4f727a91520a